{"text_format":"3","workbook":"xlsx","n_sheets":7,"sheets":["MENU","MODALITES","CODE","FCM_MàJ","FCM_Data","RtionProjet_MàJ","RtionProjet_Data"],"not_rendered":{"images":1,"macros":1,"defined_names":4},"read":"whole","date_system":"1900"}

{"sheet":"MENU","index":0,"n_rows":16,"n_cols":8,"rows_kept":16,"merged":[[0,0,0,10],[2,0,2,10],[4,0,4,10]]}
["Projet d'Agriculture Contractuelle et Transition Ecologique - PACTE"]
[]
["APPLICATION DE SUIVI EVALUATION PACTE SSE"]
[]
["REALISATION"]
["MENU :"]
[]
[null,"PROJET :"]
[null,null,"Gestion des Rapports Mensuels : "]
[{"$nulls":3},"Mise à jour RM :",{"$nulls":3},"Fichier RM :"]
[]
[]
[{"$nulls":3},"Dossier Mise à Jour :"]
[]
[null,null,"Réalisation :"]
[{"$nulls":3},"Requète MàJ",{"$nulls":3},"Données :"]

{"sheet":"MODALITES","index":1,"n_rows":31,"n_cols":13,"rows_kept":31}
["MODALITE"]
[]
[null,"Objectif :"]
[null,null,"1) ","Mettre à jour la table des Rapport Mensuel"]
[null,null,"2)","Mettre à jour les 3 bases de données des indicateurs de Réalisation pour C1, C2 et C3 (XX)"]
[{"$nulls":3},"A noter : XX = C1 ou C2 dans les lignes suivantes"]
[]
[null,null,"1) ","Table des FCM - Mise à Jour"]
[{"$nulls":3},"Le mécanisme s'appuie sur la mise à jour de la feuille Maj_Rap_Mensuel"]
[{"$nulls":4},"a) Sélectionner l'année et le mois du rapport"]
[{"$nulls":4},"b) Indiquer  la date, Si Date <> vide => Oui",{"$nulls":7},"Automatiset Si date => Oui"]
[{"$nulls":4},"c) Ajouter cette feuille de mise à jour dans la feuille \"Rap_Mensuel\" avec le bouton \"Actualiser\""]
[{"$nulls":3},"A noter : En cas de réception après la date limite, faire la mise à jour directement dans la table \"Rap_Mensuel\""]
[{"$nulls":3},"Formule \"Oui\" en référence standard!"]
[]
[null,null,"2)","Table C1, C2 et C3?"]
[{"$nulls":3},"Le mécanisme s'appuie sur la consolidation automatique des feuilles de Mise à Jour mensuelle dans une table \"Réalisation_XX_MaJ - Bouton Actualisation"]
[{"$nulls":4},"* Collecter les feuilles de Mise à Jour mensuelle et les stocker dans le répertoire C:\\PACTE_SSE\\B-DATA\\REALISATION\\Réalisation_XX_MaJ"]
[{"$nulls":4},"* Consolider ces feuilles MaJ dans la feuille \"Réalisation_XX_MaJ\" avec le bouton \"Consolidation\" (Requête Dossier)"]
[{"$nulls":4},"* Ajouter cette feuille à la table \"D_XX\" avec le bouton \"Actualisation\""]
[]
[null,"Titre des colonnes :"]
[null,null,"A Remplir :"]
[{"$nulls":3},"Vert Fluo =","Taper le texte"]
[{"$nulls":3},"Vert Foncé =","A créer"]
[{"$nulls":3},"Jaune =","Liste déroulante"]
[{"$nulls":4},"Note : Certaines listes déroulantes sont à 2 niveaux pour faciliter l'identification du code Ex : Région => Province => Commune"]
[null,null,"Ne pas remplir :"]
[{"$nulls":3},"Orange =","Ne pas remplir Formule automatique"]
[{"$nulls":3},"Blanc = ","Ne pas modifier"]
[{"$nulls":3},"Rouge = ","En attente de validation"]

{"sheet":"CODE","index":2,"n_rows":21,"n_cols":10,"rows_kept":21}
["CODIFICATION"]
[]
[]
["FEUILLE DE COLLECTE MENSUELLE (FCM)"]
[]
[null,"ANNEE",null,"MOIS",null,"STATUT",null,"DATE","Date","Fériés"]
[null,2019,null,"Janvier",null,"Programmé",null,"2022-01-01","Samedi 1er janvier","Nouvel An"]
[null,2020,null,"Février",null,"Réalisé",null,"2022-01-03","Lundi 3 janvier","Soulèvement populaire"]
[null,2021,null,"Mars",{"$nulls":3},"2022-03-08","Mardi 8 mars","Journée internationale de la femme"]
[null,2022,null,"Avril",{"$nulls":3},"2022-04-18","Lundi 18 avril","Lundi de pâques"]
[null,2023,null,"Mai",{"$nulls":3},"2022-05-02","Lundi 2 mai","Jour de congé pour fête de travail"]
[{"$nulls":3},"Juin",{"$nulls":3},"2022-05-03","Mardi 3 mai","Aid el-filtr"]
[{"$nulls":3},"Juillet",{"$nulls":3},"2022-05-26","Jeudi 26 mai","Ascension"]
[{"$nulls":3},"Août",{"$nulls":3},"2022-07-11","Lundi 11 juillet","Jour de congé pour Tabaski"]
[{"$nulls":3},"Septembre",{"$nulls":3},"2022-08-05","Jeudi 5 aout","Fête nationale"]
[{"$nulls":3},"Octobre",{"$nulls":3},"2022-08-15","Lundi 15 aout","Assomption"]
[{"$nulls":3},"Novembre",{"$nulls":3},"2022-10-08","Samedi 8 octobre","Mouloud"]
[{"$nulls":3},"Décembre",{"$nulls":3},"2022-10-31","Lundi 31 octobre","Martyrs Day"]
[{"$nulls":7},"2022-11-01","Mardi 1er novembre","Toussaint"]
[{"$nulls":7},"2022-12-12","Lundi 12 décembre","Jour de congé pour proclamation d’indépendance"]
[{"$nulls":7},"2022-12-26","Lundi 26 décembre","Jour de congé pour noël"]

{"sheet":"FCM_MàJ","index":3,"n_rows":43,"n_cols":11,"rows_kept":43,"merged":[[0,0,0,8]]}
["SUIVI DES FEUILLES DE COLLECTE MENSUELLES - FCM -"]
[]
[{"$nulls":5},"ANNEE","MOIS",null,"Statut","Réception jusqu'au :"]
[{"$nulls":5},2022,"Mai",null,"Réalisé",null,{"$f":"WORKDAY(F8,5,DATE[DATE])","v":"2022-06-07"}]
[]
[]
["N°","COMPOSANTE","ID_PROJET","PROJET","ACRONYME","DATE","FCM","Statut","DATE_FCM"]
[null,"C1","P1101","Projet d'intensification de la production et la commercialisation du riz et du maïs ","PPIC-RIMA",{"$f":"IFERROR(DATE(FCM_MàJ!$F$4,MONTH(1&FCM_MàJ!$G$4)+1,1)-1,\"\")","v":"2022-05-31"},{"$f":"IF(I8>F8,\"Oui\",\"\")","v":""},{"$f":"$I$4","v":"Réalisé"},null,null,"Si Date RM avant la date du rapport"]
[null,"C1","P1102","Projet d’agriculture contractuelle pour une intensification écologique de la production du maïs","ACPEM",{"$f":"IFERROR(DATE(FCM_MàJ!$F$4,MONTH(1&FCM_MàJ!$G$4)+1,1)-1,\"\")","v":"2022-05-31"},{"$f":"IF(I9>F9,\"Oui\",\"\")","v":""},"Réalisé"]
[null,"C1","P1103","Projet d’Appui aux Petits Exploitants Agricoles","PAPEA-3K",{"$f":"IFERROR(DATE(FCM_MàJ!$F$4,MONTH(1&FCM_MàJ!$G$4)+1,1)-1,\"\")","v":"2022-05-31"},"","Réalisé",null,null,"Si Date RM après la date limite"]
[null,"C1","P1104","Projet de production et de commercialisation du Maîs du Nayala","PROCOMAN",{"$f":"IFERROR(DATE(FCM_MàJ!$F$4,MONTH(1&FCM_MàJ!$G$4)+1,1)-1,\"\")","v":"2022-05-31"},"","Réalisé"]
[null,"C1","P1105","Projet d’Appui à la Commercialisation du Riz local et à la promotion de l’Agriculture Ecologique dans la province du Boulgou (PACRAEB)","PACRAEB",{"$f":"IFERROR(DATE(FCM_MàJ!$F$4,MONTH(1&FCM_MàJ!$G$4)+1,1)-1,\"\")","v":"2022-05-31"},"","Réalisé"]
[null,"C1","P2101","Projet d’appui à l’agriculture durable et contractuelle dans la province du Bam","P2AEC",{"$f":"IFERROR(DATE(FCM_MàJ!$F$4,MONTH(1&FCM_MàJ!$G$4)+1,1)-1,\"\")","v":"2022-05-31"},"","Réalisé"]
[null,"C1","P2102","Projet de Développement de la Riziculture Contractuelle Agro-écologique par le renforcement des capacités des parties prenantes","PDRCA",{"$f":"IFERROR(DATE(FCM_MàJ!$F$4,MONTH(1&FCM_MàJ!$G$4)+1,1)-1,\"\")","v":"2022-05-31"},"","Réalisé"]
[null,"C1","P2103","Projet d’appui à la production durable et de commercialisation du Niébé au Burkina Faso","PADCN",{"$f":"IFERROR(DATE(FCM_MàJ!$F$4,MONTH(1&FCM_MàJ!$G$4)+1,1)-1,\"\")","v":"2022-05-31"},"","Réalisé"]
[null,"C1","P2104","Projet d’appui à l’agriculture durable et contractuelle dans la province du Sanmatenga","PADC",{"$f":"IFERROR(DATE(FCM_MàJ!$F$4,MONTH(1&FCM_MàJ!$G$4)+1,1)-1,\"\")","v":"2022-05-31"},"","Réalisé"]
[null,"C1","P2105","Projet d’Amélioration de la Productivité et de la Compétitivité de la filière lait local dans la province du Seno","KSS",{"$f":"IFERROR(DATE(FCM_MàJ!$F$4,MONTH(1&FCM_MàJ!$G$4)+1,1)-1,\"\")","v":"2022-05-31"},"","Réalisé"]
[null,"C1","P2106","Projet Filière Innovante et Croissance Inclusive de l'Economie Locale","FICIEL",{"$f":"IFERROR(DATE(FCM_MàJ!$F$4,MONTH(1&FCM_MàJ!$G$4)+1,1)-1,\"\")","v":"2022-05-31"},"","Réalisé"]
[null,"C2","P1201","Projet d’accroissement de la disponibilité alimentaire ","PADIAC",{"$f":"IFERROR(DATE(FCM_MàJ!$F$4,MONTH(1&FCM_MàJ!$G$4)+1,1)-1,\"\")","v":"2022-05-31"},"","Réalisé"]
[null,"C2","P1202","Agriculture contractuelle pour une intensification écologique de la production du riz ","ACPER",{"$f":"IFERROR(DATE(FCM_MàJ!$F$4,MONTH(1&FCM_MàJ!$G$4)+1,1)-1,\"\")","v":"2022-05-31"},"","Réalisé"]
[null,"C2","P1203","Projet Contrats Durables pour le Riz des Hauts Bassins","PCD-RHB",{"$f":"IFERROR(DATE(FCM_MàJ!$F$4,MONTH(1&FCM_MàJ!$G$4)+1,1)-1,\"\")","v":"2022-05-31"},"","Réalisé"]
[null,"C2","P1204","Projet de développement des chaînes de valeur maïs Industriel intégrant Systèmes d’Agriculture Contractuelle, d’Agro-écologiques et Financiers durables dans les régions des Hauts Bassins et des Cascades (PISAAF)","PISAAF",{"$f":"IFERROR(DATE(FCM_MàJ!$F$4,MONTH(1&FCM_MàJ!$G$4)+1,1)-1,\"\")","v":"2022-05-31"},"","Réalisé"]
[null,"C2","P1205","Projet Maïs SNK 2778 ","SN K 2778",{"$f":"IFERROR(DATE(FCM_MàJ!$F$4,MONTH(1&FCM_MàJ!$G$4)+1,1)-1,\"\")","v":"2022-05-31"},"","Réalisé"]
[null,"C2","P1206","Projet de renforcement de la professionnalisation des acteurs de la filière karité","PRPAK",{"$f":"IFERROR(DATE(FCM_MàJ!$F$4,MONTH(1&FCM_MàJ!$G$4)+1,1)-1,\"\")","v":"2022-05-31"},"","Réalisé"]
[null,"C2","P1207","Projet de renforcement de la production de maïs et la contractualisation ","PROMAC",{"$f":"IFERROR(DATE(FCM_MàJ!$F$4,MONTH(1&FCM_MàJ!$G$4)+1,1)-1,\"\")","v":"2022-05-31"},"","Réalisé"]
[null,"C2","P2201","Projet production Durable et Contractualisation dans la filière Karité","PROCKA",{"$f":"IFERROR(DATE(FCM_MàJ!$F$4,MONTH(1&FCM_MàJ!$G$4)+1,1)-1,\"\")","v":"2022-05-31"},"","Réalisé"]
[null,"C2","P2202","Projet d’agriculture contractuelle pour un développement durable et équitable de la filière anacarde","PACDEFA",{"$f":"IFERROR(DATE(FCM_MàJ!$F$4,MONTH(1&FCM_MàJ!$G$4)+1,1)-1,\"\")","v":"2022-05-31"},"","Réalisé"]
[null,"C2","P2203","Projet d’Intensification de la Production Agroécologique et de la Transformation de l’Arachide au Burkina Faso","PIPATA",{"$f":"IFERROR(DATE(FCM_MàJ!$F$4,MONTH(1&FCM_MàJ!$G$4)+1,1)-1,\"\")","v":"2022-05-31"},"","Réalisé"]
[null,"C2","P2204","Projet d’intensification de la production et de la commercialisation du manioc sous contrat","PACOM",{"$f":"IFERROR(DATE(FCM_MàJ!$F$4,MONTH(1&FCM_MàJ!$G$4)+1,1)-1,\"\")","v":"2022-05-31"},"","Réalisé"]
[null,"C2","P2205","Projet de renforcement des relations contractuelles entre les collectrices d’amandes et Olvea Burkina","PACOK",{"$f":"IFERROR(DATE(FCM_MàJ!$F$4,MONTH(1&FCM_MàJ!$G$4)+1,1)-1,\"\")","v":"2022-05-31"},"","Réalisé"]
[null,"C2","P2206","Projet « Accroissement de la production et accès à un marché sécurisé pour les petits producteurs de mangue du Kénédougou et de la Comoé","PROMANGUE",{"$f":"IFERROR(DATE(FCM_MàJ!$F$4,MONTH(1&FCM_MàJ!$G$4)+1,1)-1,\"\")","v":"2022-05-31"},"","Réalisé"]
[null,"C2","P2207","Projet de promotion de l’apiculture écologique et contractuelle","PAEC",{"$f":"IFERROR(DATE(FCM_MàJ!$F$4,MONTH(1&FCM_MàJ!$G$4)+1,1)-1,\"\")","v":"2022-05-31"},"","Réalisé"]
[null,"C2","P2208","Projet d’agriculture contractuelle par une intensification agroécologique de la production locale du riz dans la région du Centre-Est","PACIA-CE",{"$f":"IFERROR(DATE(FCM_MàJ!$F$4,MONTH(1&FCM_MàJ!$G$4)+1,1)-1,\"\")","v":"2022-05-31"},"","Réalisé"]
[null,"C2","P2209","Projet d’appui à la transformation et à la commercialisation des produits du karité à travers la contractualisation durable dans les régions des Hauts Bassins et de la Boucle du Mouhoun","PATCK",{"$f":"IFERROR(DATE(FCM_MàJ!$F$4,MONTH(1&FCM_MàJ!$G$4)+1,1)-1,\"\")","v":"2022-05-31"},"","Réalisé"]
[null,"C2","P2210","Projet d’Appui à la promotion du Commerce Equitable du Karité","PACEK",{"$f":"IFERROR(DATE(FCM_MàJ!$F$4,MONTH(1&FCM_MàJ!$G$4)+1,1)-1,\"\")","v":"2022-05-31"},"","Réalisé"]
[null,"C2","P2211","Projet Developpement Durable du Soja les Hauts - Bassins","PDDS",{"$f":"IFERROR(DATE(FCM_MàJ!$F$4,MONTH(1&FCM_MàJ!$G$4)+1,1)-1,\"\")","v":"2022-05-31"},"","Réalisé"]
[null,"C2","P2212","Projet de Production Agro-écologique et de Transformation du Maïs","2PATM",{"$f":"IFERROR(DATE(FCM_MàJ!$F$4,MONTH(1&FCM_MàJ!$G$4)+1,1)-1,\"\")","v":"2022-05-31"},"","Réalisé"]
[null,"C2","P2213","Projet de Valorisation de la Mangue Fraiche Biologique de la région des Hauts-Bassins","PROVAMAB",{"$f":"IFERROR(DATE(FCM_MàJ!$F$4,MONTH(1&FCM_MàJ!$G$4)+1,1)-1,\"\")","v":"2022-05-31"},"","Réalisé"]
[null,"C2","P2214","Projet Appui à la structuration des filières locales de boissons à base de soja et gingembre par l’agriculture contractuelle et la transition agro écologique dans la région des Hauts-Bassins","ACOSGI",{"$f":"IFERROR(DATE(FCM_MàJ!$F$4,MONTH(1&FCM_MàJ!$G$4)+1,1)-1,\"\")","v":"2022-05-31"},"","Réalisé"]
[null,"C2","P2215","Projet d’Agriculture Contractuelle pour une intensification de la production et la transformation de la Mangue Biologique dans la région des Hauts-Bassins","PACMB",{"$f":"IFERROR(DATE(FCM_MàJ!$F$4,MONTH(1&FCM_MàJ!$G$4)+1,1)-1,\"\")","v":"2022-05-31"},"","Réalisé"]
[null,"C2","P2216","Projet Valorisation de la Filière Manioc et Développement du Marché d’Attiéké dans la région des Hauts Bassins","VAFIMA",{"$f":"IFERROR(DATE(FCM_MàJ!$F$4,MONTH(1&FCM_MàJ!$G$4)+1,1)-1,\"\")","v":"2022-05-31"},"","Réalisé"]
[null,"C2","P2217","Projet de Développement de l’Alimentation Volaille par l’Intensification de la production de Maïs et soja","DAVIMS",{"$f":"IFERROR(DATE(FCM_MàJ!$F$4,MONTH(1&FCM_MàJ!$G$4)+1,1)-1,\"\")","v":"2022-05-31"},"","Réalisé"]
[null,"C2","P2218","Projet d'Amélioration de la Productivité et de la Commercialisation du Riz","APCR",{"$f":"IFERROR(DATE(FCM_MàJ!$F$4,MONTH(1&FCM_MàJ!$G$4)+1,1)-1,\"\")","v":"2022-05-31"},"","Réalisé"]

{"sheet":"FCM_Data","index":4,"n_rows":5,"n_cols":12,"rows_kept":5}
[]
[]
[]
["N°","COMPOSANTE","ID_PROJET","PROJET","ACRONYME","DATE","FCM","STATUT","DATE_FCM",null,"DATE","FCM"]
[{"$nulls":10},44681,{"$error":"#VALUE!"}]

{"sheet":"RtionProjet_MàJ","index":5,"n_rows":115,"n_cols":29,"rows_kept":115}
[]
[]
[]
[]
["Colonne1","ANNEE","MOIS","DATE MaJ","STATUT","COMPOSANTE","ID_PROJET","ACRONYME","ID_INDIC","REALISATION","SOUS_REALISATION","INDICATEUR","INTITULE","TYPE","ID_BENEFICIAIRE","BENEFICIAIRE","LATITUDE","LONGITUDE","UNITE","NOMBRE","DIMENSION","JOUR","PARTIC_PROG","FEMME<35","HOMME<35","FEMME>35","HOMME>35","CFA PACTE","CFA BENEF"]
[null,2021,"Août","2021-08-31","Réalisé","C2","P1201","PADIAC",null,"INFRASTRUCTURE","Bâtiment","Boutique BISMA","xxxxx","Construction","VEND_72","URCEA/BMH",null,null,"m²",999,0,{"$nulls":6},0,0]
[null,2021,"Août","2021-08-31","Réalisé","C2","P1201","PADIAC",null,"INFRASTRUCTURE","Bâtiment","Boutique BISMA","xxxxxx","Construction","VEND_73","U.R.S.COOP-C.P.A./BHM)",null,null,"m²",0,0,{"$nulls":6},0,0]
[null,2021,"Août","2021-08-31","Réalisé","C2","P1201","PADIAC",null,"INFRASTRUCTURE","Bâtiment","Boutique BISMA","xxxxxx","Réhabilitation","VEND_70","Association «Vanoussan » de Sayaro",null,null,"m²",1,100,{"$nulls":6},99959]
[null,2021,"Août","2021-08-31","Réalisé","C2","P1201","PADIAC",null,"INFRASTRUCTURE","Bâtiment","Boutique BISMA","xxxxxx","Réhabilitation","VEND_71","Association Bwawese Centre d’Appui à la Gestion des Exploitations Familiales",null,null,"m²",null,0,{"$nulls":6},0,0]
[null,2021,"Août","2021-08-31","Réalisé","C2","P1201","PADIAC",null,"INFRASTRUCTURE","Bâtiment","Magasin de stockage","xxxxxx","Construction","VEND_72","URCEA/BMH",null,null,"m²",null,0,{"$nulls":6},0,0]
[null,2021,"Août","2021-08-31","Réalisé","C2","P1201","PADIAC",null,"INFRASTRUCTURE","Bâtiment","Magasin de stockage","xxxxxx","Construction","VEND_73","U.R.S.COOP-C.P.A./BHM)",null,null,"m²",null,0,{"$nulls":6},0,0]
[null,2021,"Août","2021-08-31","Réalisé","C2","P1201","PADIAC",null,"INFRASTRUCTURE","Bâtiment","Magasin de stockage","xxxxxx","Construction",{"$nulls":4},"m²",null,100,{"$nulls":6},0]
[null,2021,"Août","2021-08-31","Réalisé","C2","P1201","PADIAC",null,"INFRASTRUCTURE","Bâtiment","Magasin de stockage","xxxxxx","Construction",{"$nulls":4},"m²",null,0,{"$nulls":6},0,0]
[null,2021,"Août","2021-08-31","Réalisé","C2","P1201","PADIAC",null,"INFRASTRUCTURE","Bâtiment","Magasin de stockage","xxxxxx","Construction",{"$nulls":4},"m²",null,0,{"$nulls":6},0,0]
[null,2021,"Août","2021-08-31","Réalisé","C2","P1201","PADIAC",null,"INFRASTRUCTURE","Bâtiment","Magasin de stockage","xxxxxx","Construction",{"$nulls":4},"m²",null,0,{"$nulls":6},0,0]
[null,2021,"Août","2021-08-31","Réalisé","C2","P1201","PADIAC",null,"INFRASTRUCTURE","Bâtiment","Magasin de stockage","xxxxxx","Construction",{"$nulls":4},"m²",null,0,{"$nulls":6},0,0]
[null,2021,"Août","2021-08-31","Réalisé","C2","P1201","PADIAC",null,"INFRASTRUCTURE","Bâtiment","Magasin de stockage","xxxxxx","Construction",{"$nulls":4},"m²",null,0,{"$nulls":6},0,0]
[null,2021,"Août","2021-08-31","Réalisé","C2","P1201","PADIAC",null,"INFRASTRUCTURE","Bâtiment","Magasin de stockage","xxxxxx","Construction",{"$nulls":4},"m²",0,0,{"$nulls":6},0,0]
[null,2021,"Août","2021-08-31","Réalisé","C2","P1201","PADIAC",null,"INFRASTRUCTURE","Bâtiment","Magasin de stockage","xxxxxx","Construction",{"$nulls":4},"m²",0,0,{"$nulls":6},0,0]
[null,2021,"Août","2021-08-31","Réalisé","C2","P1201","PADIAC",null,"INFRASTRUCTURE","Bâtiment","Magasin de stockage","xxxxxx","Construction",{"$nulls":4},"m²",0,0,{"$nulls":6},0,0]
[null,2021,"Août","2021-08-31","Réalisé","C2","P1201","PADIAC",null,"INFRASTRUCTURE","Bâtiment","Magasin de stockage","xxxxxx","Construction",{"$nulls":4},"m²",1,100,{"$nulls":6},0]
[null,2021,"Août","2021-08-31","Réalisé","C2","P1201","PADIAC",null,"INFRASTRUCTURE","Bâtiment","Magasin de stockage","xxxxxx","Construction",{"$nulls":4},"m²",0,0,{"$nulls":6},0,0]
[null,2021,"Août","2021-08-31","Réalisé","C2","P1201","PADIAC",null,"INFRASTRUCTURE","Bâtiment","Magasin de stockage","xxxxxx","Construction",{"$nulls":4},"m²",0,0,{"$nulls":6},0,0]
[null,2021,"Août","2021-08-31","Réalisé","C2","P1201","PADIAC",null,"INFRASTRUCTURE","Autres","Aire de séchage","xxxxxx","Construction",{"$nulls":4},"m²",0,0,{"$nulls":6},0,0]
[null,2021,"Août","2021-08-31","Réalisé","C2","P1201","PADIAC",null,"INFRASTRUCTURE","Autres","Aire de séchage","xxxxxx","Construction",{"$nulls":4},"m²",1,100,{"$nulls":6},0]
[null,2021,"Août","2021-08-31","Réalisé","C2","P1201","PADIAC",null,"INFRASTRUCTURE","Autres","Aire de séchage","xxxxxx","Construction",{"$nulls":4},"m²",0,0,{"$nulls":6},0,0]
[null,2021,"Août","2021-08-31","Réalisé","C2","P1201","PADIAC",null,"INFRASTRUCTURE","Autres","Aire de séchage","xxxxxx","Construction",{"$nulls":4},"m²",0,0,{"$nulls":6},0,0]
[null,2021,"Août","2021-08-31","Réalisé","C2","P1201","PADIAC",null,"INFRASTRUCTURE","Autres","Aire de séchage","xxxxxx","Construction",{"$nulls":4},"m²",0,0,{"$nulls":6},0,0]
[null,2021,"Août","2021-08-31","Réalisé","C2","P1201","PADIAC",null,"INFRASTRUCTURE","Autres","Aire de séchage","xxxxxx","Construction",{"$nulls":4},"m²",0,0,{"$nulls":6},0,0]
[null,2021,"Août","2021-08-31","Réalisé","C2","P1201","PADIAC",null,"INFRASTRUCTURE","Autres","Aire de séchage","xxxxxx","Construction",{"$nulls":4},"m²",0,0,{"$nulls":6},0,0]
[null,2021,"Août","2021-08-31","Réalisé","C2","P1201","PADIAC",null,"INFRASTRUCTURE","Autres","Aire de séchage","xxxxxx","Construction",{"$nulls":4},"m²",0,0,{"$nulls":6},0,0]
[null,2021,"Août","2021-08-31","Réalisé","C2","P1201","PADIAC",null,"INFRASTRUCTURE","Autres","Aire de séchage","xxxxxx","Construction",{"$nulls":4},"m²",0,0,{"$nulls":6},0,0]
[null,2021,"Août","2021-08-31","Réalisé","C2","P1201","PADIAC",null,"CONSOMMABLES","Petit matériel","Agricole","xxxxxx",{"$nulls":6},1,0,{"$nulls":6},222]
[null,2021,"Août","2021-08-31","Réalisé","C2","P1201","PADIAC",null,"SERVICE","Etude","Plan Marketing","xxxxxx",{"$nulls":5},"P*J",1,50,{"$nulls":6},4444]
[null,2021,"Août","2021-08-31","Réalisé","C2","P1201","PADIAC",null,"SERVICE","Etude","Diagnostic Inst. & Organisationnel","xxxxxx",{"$nulls":5},"P*J",0,0,{"$nulls":6},0,0]
[null,2021,"Août","2021-08-31","Réalisé","C2","P1201","PADIAC",null,"SERVICE","Etude","Situation de référence","xxxxxx",{"$nulls":5},"P*J",0,0,{"$nulls":6},0,0]
[null,2021,"Août","2021-08-31","Réalisé","C2","P1201","PADIAC",null,"SERVICE","Recherche","Aliment du bétail","xxxxxx",{"$nulls":5},"P*J",0,0,{"$nulls":6},0,0]
[null,2021,"Août","2021-08-31","Réalisé","C2","P1201","PADIAC",null,"SERVICE","Recherche","Aliment du bétail","xxxxxx",{"$nulls":5},"P*J",0,0,{"$nulls":6},0,0]
[null,2021,"Août","2021-08-31","Réalisé","C2","P1201","PADIAC",null,"SERVICE","Recherche","Aliment du bétail","xxxxxx",{"$nulls":5},"P*J",1,120,{"$nulls":6},3333]
[null,2021,"Août","2021-08-31","Réalisé","C2","P1201","PADIAC",null,"SERVICE","Recherche","Aliment du bétail","xxxxxx",{"$nulls":5},"P*J",0,0,{"$nulls":6},0,0]
[null,2021,"Août","2021-08-31","Réalisé","C2","P1201","PADIAC",null,"SERVICE","Conseil","Appui-Conseil","xxxxxx",{"$nulls":5},"P*J",1,12,{"$nulls":6},99991]
[null,2021,"Août","2021-08-31","Réalisé","C2","P1201","PADIAC",null,"SERVICE","Conseil","Négociation","xxxxxx",{"$nulls":5},"P*J",0,0,{"$nulls":6},0,0]
[null,2021,"Août","2021-08-31","Réalisé","C2","P1201","PADIAC",null,"IEC","Information","Radio","xxxxxx",{"$nulls":6},0,0,{"$nulls":6},0,0]
[null,2021,"Août","2021-08-31","Réalisé","C2","P1201","PADIAC",null,"IEC","Information","Radio","xxxxxx",{"$nulls":6},0,0,{"$nulls":6},0,0]
[null,2021,"Août","2021-08-31","Réalisé","C2","P1201","PADIAC",null,"IEC","Information","Radio","xxxxxx",{"$nulls":6},0,0,{"$nulls":6},0,0]
[null,2021,"Août","2021-08-31","Réalisé","C2","P1201","PADIAC",null,"IEC","Information","Radio","xxxxxx",{"$nulls":6},0,0,{"$nulls":6},0,0]
[null,2021,"Août","2021-08-31","Réalisé","C2","P1201","PADIAC",null,"IEC","Information","Atelier","xxxxxx",{"$nulls":6},1,22,{"$nulls":6},3333]
[null,2021,"Août","2021-08-31","Réalisé","C2","P1201","PADIAC",null,"IEC","Information","Voyage d'étude","xxxxxx",{"$nulls":6},0,null,2,null,null,25,25,null,0,0]
[null,2021,"Août","2021-08-31","Réalisé","C2","P1201","PADIAC",null,"IEC","Vulgarisation","Chantier-Ecole","xxxxxx",{"$nulls":6},1,88,{"$nulls":6},0,0]
[null,2021,"Août","2021-08-31","Réalisé","C2","P1201","PADIAC",null,"IEC","Formation","Formateur","xxxxxx",{"$nulls":6},1,{"$nulls":7},444]
[null,2021,"Août","2021-08-31","Réalisé","C2","P1201","PADIAC",null,"IEC","Formation","Producteur","Aliment xxxxxxxxxxxx",{"$nulls":6},0,null,0,null,0,0,0,null,0,0]
[null,2021,"Août","2021-08-31","Réalisé","C2","P1201","PADIAC",null,"IEC","Formation","Producteur","Aliment xxxxxxxxxxxx",{"$nulls":6},0,null,0,null,0,0,0,null,0,0]
[null,2021,"Août","2021-08-31","Réalisé","C2","P1201","PADIAC",null,"IEC","Formation","Producteur","Gestion magasin xxxxx",{"$nulls":6},1,null,10,null,null,4,6,null,88000]
[null,2021,"Août","2021-08-31","Réalisé","C2","P1201","PADIAC",null,"IEC","Formation","Producteur","Gestion magasin xxxxx",{"$nulls":6},0,null,0,null,0,0,0,0,0,0]
[null,2021,"Août","2021-08-31","Réalisé","C2","P1201","PADIAC",null,"IEC","Formation","Producteur","Gestion magasin xxxxx",{"$nulls":6},0,null,0,null,0,0,0,0,0,0]
[null,2021,"Août","2021-08-31","Réalisé","C2","P1201","PADIAC",null,"IEC","Formation","Producteur","Gestion magasin xxxxx",{"$nulls":6},0,null,0,null,0,0,0,0,0,0]
[null,2021,"Août","2021-08-31","Réalisé","C2","P1201","PADIAC",null,"IEC","Formation","Producteur","Gestion magasin xxxxx",{"$nulls":6},0,null,0,null,0,0,0,0,0,0]
[null,2021,"Août","2021-08-31","Réalisé","C2","P1201","PADIAC",null,"IEC","Formation","Producteur","Gestion magasin xxxxx",{"$nulls":6},1,null,3,null,33,4,6,null,28000]
[null,2021,"Août","2021-08-31","Réalisé","C2","P1201","PADIAC",null,"FONDS","Crédit producteur",{"$nulls":8},1,{"$nulls":3},5,{"$nulls":3},444]
[null,2021,"Août","2021-08-31","Réalisé","C2","P1201","PADIAC",null,"FONDS","Crédit producteur",{"$nulls":8},0,{"$nulls":7},0,0]
[null,2021,"Août","2021-08-31","Réalisé","C2","P1201","PADIAC",null,"INFRASTRUCTURE","Bâtiment","Boutique BISMA","xxxxx","Construction","VEND_72","URCEA/BMH",null,null,"m²",999,0,{"$nulls":6},0,0]
[null,2021,"Août","2021-08-31","Réalisé","C2","P1201","PADIAC",null,"INFRASTRUCTURE","Bâtiment","Boutique BISMA","xxxxxx","Construction","VEND_73","U.R.S.COOP-C.P.A./BHM)",null,null,"m²",0,0,{"$nulls":6},0,0]
[null,2021,"Août","2021-08-31","Réalisé","C2","P1201","PADIAC",null,"INFRASTRUCTURE","Bâtiment","Boutique BISMA","xxxxxx","Réhabilitation","VEND_70","Association «Vanoussan » de Sayaro",null,null,"m²",1,100,{"$nulls":6},99959]
[null,2021,"Août","2021-08-31","Réalisé","C2","P1201","PADIAC",null,"INFRASTRUCTURE","Bâtiment","Boutique BISMA","xxxxxx","Réhabilitation","VEND_71","Association Bwawese Centre d’Appui à la Gestion des Exploitations Familiales",null,null,"m²",null,0,{"$nulls":6},0,0]
[null,2021,"Août","2021-08-31","Réalisé","C2","P1201","PADIAC",null,"INFRASTRUCTURE","Bâtiment","Magasin de stockage","xxxxxx","Construction","VEND_72","URCEA/BMH",null,null,"m²",null,0,{"$nulls":6},0,0]
[null,2021,"Août","2021-08-31","Réalisé","C2","P1201","PADIAC",null,"INFRASTRUCTURE","Bâtiment","Magasin de stockage","xxxxxx","Construction","VEND_73","U.R.S.COOP-C.P.A./BHM)",null,null,"m²",null,0,{"$nulls":6},0,0]
[null,2021,"Août","2021-08-31","Réalisé","C2","P1201","PADIAC",null,"INFRASTRUCTURE","Bâtiment","Magasin de stockage","xxxxxx","Construction",{"$nulls":4},"m²",null,100,{"$nulls":6},0]
[null,2021,"Août","2021-08-31","Réalisé","C2","P1201","PADIAC",null,"INFRASTRUCTURE","Bâtiment","Magasin de stockage","xxxxxx","Construction",{"$nulls":4},"m²",null,0,{"$nulls":6},0,0]
[null,2021,"Août","2021-08-31","Réalisé","C2","P1201","PADIAC",null,"INFRASTRUCTURE","Bâtiment","Magasin de stockage","xxxxxx","Construction",{"$nulls":4},"m²",null,0,{"$nulls":6},0,0]
[null,2021,"Août","2021-08-31","Réalisé","C2","P1201","PADIAC",null,"INFRASTRUCTURE","Bâtiment","Magasin de stockage","xxxxxx","Construction",{"$nulls":4},"m²",null,0,{"$nulls":6},0,0]
[null,2021,"Août","2021-08-31","Réalisé","C2","P1201","PADIAC",null,"INFRASTRUCTURE","Bâtiment","Magasin de stockage","xxxxxx","Construction",{"$nulls":4},"m²",null,0,{"$nulls":6},0,0]
[null,2021,"Août","2021-08-31","Réalisé","C2","P1201","PADIAC",null,"INFRASTRUCTURE","Bâtiment","Magasin de stockage","xxxxxx","Construction",{"$nulls":4},"m²",null,0,{"$nulls":6},0,0]
[null,2021,"Août","2021-08-31","Réalisé","C2","P1201","PADIAC",null,"INFRASTRUCTURE","Bâtiment","Magasin de stockage","xxxxxx","Construction",{"$nulls":4},"m²",0,0,{"$nulls":6},0,0]
[null,2021,"Août","2021-08-31","Réalisé","C2","P1201","PADIAC",null,"INFRASTRUCTURE","Bâtiment","Magasin de stockage","xxxxxx","Construction",{"$nulls":4},"m²",0,0,{"$nulls":6},0,0]
[null,2021,"Août","2021-08-31","Réalisé","C2","P1201","PADIAC",null,"INFRASTRUCTURE","Bâtiment","Magasin de stockage","xxxxxx","Construction",{"$nulls":4},"m²",0,0,{"$nulls":6},0,0]
[null,2021,"Août","2021-08-31","Réalisé","C2","P1201","PADIAC",null,"INFRASTRUCTURE","Bâtiment","Magasin de stockage","xxxxxx","Construction",{"$nulls":4},"m²",1,100,{"$nulls":6},0]
[null,2021,"Août","2021-08-31","Réalisé","C2","P1201","PADIAC",null,"INFRASTRUCTURE","Bâtiment","Magasin de stockage","xxxxxx","Construction",{"$nulls":4},"m²",0,0,{"$nulls":6},0,0]
[null,2021,"Août","2021-08-31","Réalisé","C2","P1201","PADIAC",null,"INFRASTRUCTURE","Bâtiment","Magasin de stockage","xxxxxx","Construction",{"$nulls":4},"m²",0,0,{"$nulls":6},0,0]
[null,2021,"Août","2021-08-31","Réalisé","C2","P1201","PADIAC",null,"INFRASTRUCTURE","Autres","Aire de séchage","xxxxxx","Construction",{"$nulls":4},"m²",0,0,{"$nulls":6},0,0]
[null,2021,"Août","2021-08-31","Réalisé","C2","P1201","PADIAC",null,"INFRASTRUCTURE","Autres","Aire de séchage","xxxxxx","Construction",{"$nulls":4},"m²",1,100,{"$nulls":6},0]
[null,2021,"Août","2021-08-31","Réalisé","C2","P1201","PADIAC",null,"INFRASTRUCTURE","Autres","Aire de séchage","xxxxxx","Construction",{"$nulls":4},"m²",0,0,{"$nulls":6},0,0]
[null,2021,"Août","2021-08-31","Réalisé","C2","P1201","PADIAC",null,"INFRASTRUCTURE","Autres","Aire de séchage","xxxxxx","Construction",{"$nulls":4},"m²",0,0,{"$nulls":6},0,0]
[null,2021,"Août","2021-08-31","Réalisé","C2","P1201","PADIAC",null,"INFRASTRUCTURE","Autres","Aire de séchage","xxxxxx","Construction",{"$nulls":4},"m²",0,0,{"$nulls":6},0,0]
[null,2021,"Août","2021-08-31","Réalisé","C2","P1201","PADIAC",null,"INFRASTRUCTURE","Autres","Aire de séchage","xxxxxx","Construction",{"$nulls":4},"m²",0,0,{"$nulls":6},0,0]
[null,2021,"Août","2021-08-31","Réalisé","C2","P1201","PADIAC",null,"INFRASTRUCTURE","Autres","Aire de séchage","xxxxxx","Construction",{"$nulls":4},"m²",0,0,{"$nulls":6},0,0]
[null,2021,"Août","2021-08-31","Réalisé","C2","P1201","PADIAC",null,"INFRASTRUCTURE","Autres","Aire de séchage","xxxxxx","Construction",{"$nulls":4},"m²",0,0,{"$nulls":6},0,0]
[null,2021,"Août","2021-08-31","Réalisé","C2","P1201","PADIAC",null,"INFRASTRUCTURE","Autres","Aire de séchage","xxxxxx","Construction",{"$nulls":4},"m²",0,0,{"$nulls":6},0,0]
[null,2021,"Août","2021-08-31","Réalisé","C2","P1201","PADIAC",null,"CONSOMMABLES","Petit matériel","Agricole","xxxxxx",{"$nulls":6},1,0,{"$nulls":6},222]
[null,2021,"Août","2021-08-31","Réalisé","C2","P1201","PADIAC",null,"SERVICE","Etude","Plan Marketing","xxxxxx",{"$nulls":5},"P*J",1,50,{"$nulls":6},4444]
[null,2021,"Août","2021-08-31","Réalisé","C2","P1201","PADIAC",null,"SERVICE","Etude","Diagnostic Inst. & Organisationnel","xxxxxx",{"$nulls":5},"P*J",0,0,{"$nulls":6},0,0]
[null,2021,"Août","2021-08-31","Réalisé","C2","P1201","PADIAC",null,"SERVICE","Etude","Situation de référence","xxxxxx",{"$nulls":5},"P*J",0,0,{"$nulls":6},0,0]
[null,2021,"Août","2021-08-31","Réalisé","C2","P1201","PADIAC",null,"SERVICE","Recherche","Aliment du bétail","xxxxxx",{"$nulls":5},"P*J",0,0,{"$nulls":6},0,0]
[null,2021,"Août","2021-08-31","Réalisé","C2","P1201","PADIAC",null,"SERVICE","Recherche","Aliment du bétail","xxxxxx",{"$nulls":5},"P*J",0,0,{"$nulls":6},0,0]
[null,2021,"Août","2021-08-31","Réalisé","C2","P1201","PADIAC",null,"SERVICE","Recherche","Aliment du bétail","xxxxxx",{"$nulls":5},"P*J",1,120,{"$nulls":6},3333]
[null,2021,"Août","2021-08-31","Réalisé","C2","P1201","PADIAC",null,"SERVICE","Recherche","Aliment du bétail","xxxxxx",{"$nulls":5},"P*J",0,0,{"$nulls":6},0,0]
[null,2021,"Août","2021-08-31","Réalisé","C2","P1201","PADIAC",null,"SERVICE","Conseil","Appui-Conseil","xxxxxx",{"$nulls":5},"P*J",1,12,{"$nulls":6},99991]
[null,2021,"Août","2021-08-31","Réalisé","C2","P1201","PADIAC",null,"SERVICE","Conseil","Négociation","xxxxxx",{"$nulls":5},"P*J",0,0,{"$nulls":6},0,0]
[null,2021,"Août","2021-08-31","Réalisé","C2","P1201","PADIAC",null,"IEC","Information","Radio","xxxxxx",{"$nulls":6},0,0,{"$nulls":6},0,0]
[null,2021,"Août","2021-08-31","Réalisé","C2","P1201","PADIAC",null,"IEC","Information","Radio","xxxxxx",{"$nulls":6},0,0,{"$nulls":6},0,0]
[null,2021,"Août","2021-08-31","Réalisé","C2","P1201","PADIAC",null,"IEC","Information","Radio","xxxxxx",{"$nulls":6},0,0,{"$nulls":6},0,0]
[null,2021,"Août","2021-08-31","Réalisé","C2","P1201","PADIAC",null,"IEC","Information","Radio","xxxxxx",{"$nulls":6},0,0,{"$nulls":6},0,0]
[null,2021,"Août","2021-08-31","Réalisé","C2","P1201","PADIAC",null,"IEC","Information","Atelier","xxxxxx",{"$nulls":6},1,22,{"$nulls":6},3333]
[null,2021,"Août","2021-08-31","Réalisé","C2","P1201","PADIAC",null,"IEC","Information","Voyage d'étude","xxxxxx",{"$nulls":6},0,null,2,null,null,25,25,null,0,0]
[null,2021,"Août","2021-08-31","Réalisé","C2","P1201","PADIAC",null,"IEC","Vulgarisation","Chantier-Ecole","xxxxxx",{"$nulls":6},1,88,{"$nulls":6},0,0]
[null,2021,"Août","2021-08-31","Réalisé","C2","P1201","PADIAC",null,"IEC","Formation","Formateur","xxxxxx",{"$nulls":6},1,{"$nulls":7},444]
[null,2021,"Août","2021-08-31","Réalisé","C2","P1201","PADIAC",null,"IEC","Formation","Producteur","Aliment xxxxxxxxxxxx",{"$nulls":6},0,null,0,null,0,0,0,null,0,0]
[null,2021,"Août","2021-08-31","Réalisé","C2","P1201","PADIAC",null,"IEC","Formation","Producteur","Aliment xxxxxxxxxxxx",{"$nulls":6},0,null,0,null,0,0,0,null,0,0]
[null,2021,"Août","2021-08-31","Réalisé","C2","P1201","PADIAC",null,"IEC","Formation","Producteur","Gestion magasin xxxxx",{"$nulls":6},1,null,10,null,null,4,6,null,88000]
[null,2021,"Août","2021-08-31","Réalisé","C2","P1201","PADIAC",null,"IEC","Formation","Producteur","Gestion magasin xxxxx",{"$nulls":6},0,null,0,null,0,0,0,0,0,0]
[null,2021,"Août","2021-08-31","Réalisé","C2","P1201","PADIAC",null,"IEC","Formation","Producteur","Gestion magasin xxxxx",{"$nulls":6},0,null,0,null,0,0,0,0,0,0]
[null,2021,"Août","2021-08-31","Réalisé","C2","P1201","PADIAC",null,"IEC","Formation","Producteur","Gestion magasin xxxxx",{"$nulls":6},0,null,0,null,0,0,0,0,0,0]
[null,2021,"Août","2021-08-31","Réalisé","C2","P1201","PADIAC",null,"IEC","Formation","Producteur","Gestion magasin xxxxx",{"$nulls":6},0,null,0,null,0,0,0,0,0,0]
[null,2021,"Août","2021-08-31","Réalisé","C2","P1201","PADIAC",null,"IEC","Formation","Producteur","Gestion magasin xxxxx",{"$nulls":6},1,null,3,null,33,4,6,null,28000]
[null,2021,"Août","2021-08-31","Réalisé","C2","P1201","PADIAC",null,"FONDS","Crédit producteur",{"$nulls":8},1,{"$nulls":3},5,{"$nulls":3},444]
[null,2021,"Août","2021-08-31","Réalisé","C2","P1201","PADIAC",null,"FONDS","Crédit producteur",{"$nulls":8},0,{"$nulls":7},0,0]

{"sheet":"RtionProjet_Data","index":6,"n_rows":462,"n_cols":29,"rows_kept":462}
[]
[]
[]
["N°","ANNEE","MOIS","DATE_MaJ","STATUT","COMPOSANTE","ID_PROJET","ACRONYME","ID_INDIC","REALISATION","SOUS_REALISATION","INDICATEUR","INTITULE","TYPE","ID_BENEFICIAIRE","BENEFICIAIRE","LATITUDE","LONGITUDE","UNITE","NOMBRE","DIMENSION","JOUR","PARTIC_PROG","FEMME<35","HOMME<35","FEMME>35","HOMME>35","CFA PACTE","CFA BENEF"]
[1,2021,"Août","2021-08-31","Réalisé","C2","P1201","PADIAC",null,"INFRASTRUCTURE","Bâtiment","Boutique BISMA","xxxxx","Construction","VEND_72","URCEA/BMH",null,null,"m²",999,0,{"$nulls":6},0,0]
[2,2021,"Août","2021-08-31","Réalisé","C2","P1201","PADIAC",null,"INFRASTRUCTURE","Bâtiment","Boutique BISMA","xxxxxx","Construction","VEND_73","U.R.S.COOP-C.P.A./BHM)",null,null,"m²",0,0,{"$nulls":6},0,0]
[3,2021,"Août","2021-08-31","Réalisé","C2","P1201","PADIAC",null,"INFRASTRUCTURE","Bâtiment","Boutique BISMA","xxxxxx","Réhabilitation","VEND_70","Association «Vanoussan » de Sayaro",null,null,"m²",1,100,{"$nulls":6},99959]
[4,2021,"Août","2021-08-31","Réalisé","C2","P1201","PADIAC",null,"INFRASTRUCTURE","Bâtiment","Boutique BISMA","xxxxxx","Réhabilitation","VEND_71","Association Bwawese Centre d’Appui à la Gestion des Exploitations Familiales",null,null,"m²",0,0,{"$nulls":6},0,0]
[5,2021,"Août","2021-08-31","Réalisé","C2","P1201","PADIAC",null,"INFRASTRUCTURE","Bâtiment","Magasin de stockage","xxxxxx","Construction","VEND_72","URCEA/BMH",null,null,"m²",0,0,{"$nulls":6},0,0]
[6,2021,"Août","2021-08-31","Réalisé","C2","P1201","PADIAC",null,"INFRASTRUCTURE","Bâtiment","Magasin de stockage","xxxxxx","Construction","VEND_73","U.R.S.COOP-C.P.A./BHM)",null,null,"m²",0,0,{"$nulls":6},0,0]
[7,2021,"Août","2021-08-31","Réalisé","C2","P1201","PADIAC",null,"INFRASTRUCTURE","Bâtiment","Magasin de stockage","xxxxxx","Construction",{"$nulls":4},"m²",1,100,{"$nulls":6},0]
[8,2021,"Août","2021-08-31","Réalisé","C2","P1201","PADIAC",null,"INFRASTRUCTURE","Bâtiment","Magasin de stockage","xxxxxx","Construction",{"$nulls":4},"m²",0,0,{"$nulls":6},0,0]
[9,2021,"Août","2021-08-31","Réalisé","C2","P1201","PADIAC",null,"INFRASTRUCTURE","Bâtiment","Magasin de stockage","xxxxxx","Construction",{"$nulls":4},"m²",0,0,{"$nulls":6},0,0]
[10,2021,"Août","2021-08-31","Réalisé","C2","P1201","PADIAC",null,"INFRASTRUCTURE","Bâtiment","Magasin de stockage","xxxxxx","Construction",{"$nulls":4},"m²",0,0,{"$nulls":6},0,0]
[11,2021,"Août","2021-08-31","Réalisé","C2","P1201","PADIAC",null,"INFRASTRUCTURE","Bâtiment","Magasin de stockage","xxxxxx","Construction",{"$nulls":4},"m²",0,0,{"$nulls":6},0,0]
[12,2021,"Août","2021-08-31","Réalisé","C2","P1201","PADIAC",null,"INFRASTRUCTURE","Bâtiment","Magasin de stockage","xxxxxx","Construction",{"$nulls":4},"m²",0,0,{"$nulls":6},0,0]
[13,2021,"Août","2021-08-31","Réalisé","C2","P1201","PADIAC",null,"INFRASTRUCTURE","Bâtiment","Magasin de stockage","xxxxxx","Construction",{"$nulls":4},"m²",0,0,{"$nulls":6},0,0]
[14,2021,"Août","2021-08-31","Réalisé","C2","P1201","PADIAC",null,"INFRASTRUCTURE","Bâtiment","Magasin de stockage","xxxxxx","Construction",{"$nulls":4},"m²",0,0,{"$nulls":6},0,0]
[15,2021,"Août","2021-08-31","Réalisé","C2","P1201","PADIAC",null,"INFRASTRUCTURE","Bâtiment","Magasin de stockage","xxxxxx","Construction",{"$nulls":4},"m²",0,0,{"$nulls":6},0,0]
[16,2021,"Août","2021-08-31","Réalisé","C2","P1201","PADIAC",null,"INFRASTRUCTURE","Bâtiment","Magasin de stockage","xxxxxx","Construction",{"$nulls":4},"m²",1,100,{"$nulls":6},0]
[17,2021,"Août","2021-08-31","Réalisé","C2","P1201","PADIAC",null,"INFRASTRUCTURE","Bâtiment","Magasin de stockage","xxxxxx","Construction",{"$nulls":4},"m²",0,0,{"$nulls":6},0,0]
[18,2021,"Août","2021-08-31","Réalisé","C2","P1201","PADIAC",null,"INFRASTRUCTURE","Bâtiment","Magasin de stockage","xxxxxx","Construction",{"$nulls":4},"m²",0,0,{"$nulls":6},0,0]
[19,2021,"Août","2021-08-31","Réalisé","C2","P1201","PADIAC",null,"INFRASTRUCTURE","Autres","Aire de séchage","xxxxxx","Construction",{"$nulls":4},"m²",0,0,{"$nulls":6},0,0]
[20,2021,"Août","2021-08-31","Réalisé","C2","P1201","PADIAC",null,"INFRASTRUCTURE","Autres","Aire de séchage","xxxxxx","Construction",{"$nulls":4},"m²",1,100,{"$nulls":6},0]
[21,2021,"Août","2021-08-31","Réalisé","C2","P1201","PADIAC",null,"INFRASTRUCTURE","Autres","Aire de séchage","xxxxxx","Construction",{"$nulls":4},"m²",0,0,{"$nulls":6},0,0]
[22,2021,"Août","2021-08-31","Réalisé","C2","P1201","PADIAC",null,"INFRASTRUCTURE","Autres","Aire de séchage","xxxxxx","Construction",{"$nulls":4},"m²",0,0,{"$nulls":6},0,0]
[23,2021,"Août","2021-08-31","Réalisé","C2","P1201","PADIAC",null,"INFRASTRUCTURE","Autres","Aire de séchage","xxxxxx","Construction",{"$nulls":4},"m²",0,0,{"$nulls":6},0,0]
[24,2021,"Août","2021-08-31","Réalisé","C2","P1201","PADIAC",null,"INFRASTRUCTURE","Autres","Aire de séchage","xxxxxx","Construction",{"$nulls":4},"m²",0,0,{"$nulls":6},0,0]
[25,2021,"Août","2021-08-31","Réalisé","C2","P1201","PADIAC",null,"INFRASTRUCTURE","Autres","Aire de séchage","xxxxxx","Construction",{"$nulls":4},"m²",0,0,{"$nulls":6},0,0]
[26,2021,"Août","2021-08-31","Réalisé","C2","P1201","PADIAC",null,"INFRASTRUCTURE","Autres","Aire de séchage","xxxxxx","Construction",{"$nulls":4},"m²",0,0,{"$nulls":6},0,0]
[27,2021,"Août","2021-08-31","Réalisé","C2","P1201","PADIAC",null,"INFRASTRUCTURE","Autres","Aire de séchage","xxxxxx","Construction",{"$nulls":4},"m²",0,0,{"$nulls":6},0,0]
[28,2021,"Août","2021-08-31","Réalisé","C2","P1201","PADIAC",null,"CONSOMMABLES","Petit matériel","Agricole","xxxxxx",{"$nulls":6},1,0,{"$nulls":6},222]
[29,2021,"Août","2021-08-31","Réalisé","C2","P1201","PADIAC",null,"SERVICE","Etude","Plan Marketing","xxxxxx",{"$nulls":5},"P*J",1,50,{"$nulls":6},4444]
[30,2021,"Août","2021-08-31","Réalisé","C2","P1201","PADIAC",null,"SERVICE","Etude","Diagnostic Inst. & Organisationnel","xxxxxx",{"$nulls":5},"P*J",0,0,{"$nulls":6},0,0]
[31,2021,"Août","2021-08-31","Réalisé","C2","P1201","PADIAC",null,"SERVICE","Etude","Situation de référence","xxxxxx",{"$nulls":5},"P*J",0,0,{"$nulls":6},0,0]
[32,2021,"Août","2021-08-31","Réalisé","C2","P1201","PADIAC",null,"SERVICE","Recherche","Aliment du bétail","xxxxxx",{"$nulls":5},"P*J",0,0,{"$nulls":6},0,0]
[33,2021,"Août","2021-08-31","Réalisé","C2","P1201","PADIAC",null,"SERVICE","Recherche","Aliment du bétail","xxxxxx",{"$nulls":5},"P*J",0,0,{"$nulls":6},0,0]
[34,2021,"Août","2021-08-31","Réalisé","C2","P1201","PADIAC",null,"SERVICE","Recherche","Aliment du bétail","xxxxxx",{"$nulls":5},"P*J",1,120,{"$nulls":6},3333]
[35,2021,"Août","2021-08-31","Réalisé","C2","P1201","PADIAC",null,"SERVICE","Recherche","Aliment du bétail","xxxxxx",{"$nulls":5},"P*J",0,0,{"$nulls":6},0,0]
[36,2021,"Août","2021-08-31","Réalisé","C2","P1201","PADIAC",null,"SERVICE","Conseil","Appui-Conseil","xxxxxx",{"$nulls":5},"P*J",1,12,{"$nulls":6},99991]
[37,2021,"Août","2021-08-31","Réalisé","C2","P1201","PADIAC",null,"SERVICE","Conseil","Négociation","xxxxxx",{"$nulls":5},"P*J",0,0,{"$nulls":6},0,0]
[38,2021,"Août","2021-08-31","Réalisé","C2","P1201","PADIAC",null,"IEC","Information","Radio","xxxxxx",{"$nulls":6},0,0,{"$nulls":6},0,0]
[39,2021,"Août","2021-08-31","Réalisé","C2","P1201","PADIAC",null,"IEC","Information","Radio","xxxxxx",{"$nulls":6},0,0,{"$nulls":6},0,0]
[40,2021,"Août","2021-08-31","Réalisé","C2","P1201","PADIAC",null,"IEC","Information","Radio","xxxxxx",{"$nulls":6},0,0,{"$nulls":6},0,0]
[41,2021,"Août","2021-08-31","Réalisé","C2","P1201","PADIAC",null,"IEC","Information","Radio","xxxxxx",{"$nulls":6},0,0,{"$nulls":6},0,0]
[42,2021,"Août","2021-08-31","Réalisé","C2","P1201","PADIAC",null,"IEC","Information","Atelier","xxxxxx",{"$nulls":6},1,22,{"$nulls":6},3333]
[43,2021,"Août","2021-08-31","Réalisé","C2","P1201","PADIAC",null,"IEC","Information","Voyage d'étude","xxxxxx",{"$nulls":6},0,null,2,null,null,25,25,null,0,0]
[44,2021,"Août","2021-08-31","Réalisé","C2","P1201","PADIAC",null,"IEC","Vulgarisation","Chantier-Ecole","xxxxxx",{"$nulls":6},1,88,{"$nulls":6},0,0]
[45,2021,"Août","2021-08-31","Réalisé","C2","P1201","PADIAC",null,"IEC","Formation","Formateur","xxxxxx",{"$nulls":6},1,{"$nulls":7},444]
[46,2021,"Août","2021-08-31","Réalisé","C2","P1201","PADIAC",null,"IEC","Formation","Producteur","Aliment xxxxxxxxxxxx",{"$nulls":6},0,null,0,null,0,0,0,null,0,0]
[47,2021,"Août","2021-08-31","Réalisé","C2","P1201","PADIAC",null,"IEC","Formation","Producteur","Aliment xxxxxxxxxxxx",{"$nulls":6},0,null,0,null,0,0,0,null,0,0]
[48,2021,"Août","2021-08-31","Réalisé","C2","P1201","PADIAC",null,"IEC","Formation","Producteur","Gestion magasin xxxxx",{"$nulls":6},1,null,10,null,null,4,6,null,88000]
[49,2021,"Août","2021-08-31","Réalisé","C2","P1201","PADIAC",null,"IEC","Formation","Producteur","Gestion magasin xxxxx",{"$nulls":6},0,null,0,null,0,0,0,0,0,0]
[50,2021,"Août","2021-08-31","Réalisé","C2","P1201","PADIAC",null,"IEC","Formation","Producteur","Gestion magasin xxxxx",{"$nulls":6},0,null,0,null,0,0,0,0,0,0]
[51,2021,"Août","2021-08-31","Réalisé","C2","P1201","PADIAC",null,"IEC","Formation","Producteur","Gestion magasin xxxxx",{"$nulls":6},0,null,0,null,0,0,0,0,0,0]
[52,2021,"Août","2021-08-31","Réalisé","C2","P1201","PADIAC",null,"IEC","Formation","Producteur","Gestion magasin xxxxx",{"$nulls":6},0,null,0,null,0,0,0,0,0,0]
[53,2021,"Août","2021-08-31","Réalisé","C2","P1201","PADIAC",null,"IEC","Formation","Producteur","Gestion magasin xxxxx",{"$nulls":6},1,null,3,null,33,4,6,null,28000]
[54,2021,"Août","2021-08-31","Réalisé","C2","P1201","PADIAC",null,"FONDS","Crédit producteur",{"$nulls":8},1,{"$nulls":3},5,{"$nulls":3},444]
[55,2021,"Août","2021-08-31","Réalisé","C2","P1201","PADIAC",null,"FONDS","Crédit producteur",{"$nulls":8},0,{"$nulls":7},0,0]
[56,2021,"Septembre","2021-09-30","Réalisé","C2","P1201","PADIAC",null,"INFRASTRUCTURE","Bâtiment","Boutique BISMA","xxxxx","Construction","VEND_72","URCEA/BMH",null,null,"m²",1,100]
[57,2021,"Septembre","2021-09-30","Réalisé","C2","P1201","PADIAC",null,"INFRASTRUCTURE","Bâtiment","Boutique BISMA","xxxxxx","Construction","VEND_73","U.R.S.COOP-C.P.A./BHM)",null,null,"m²",0,0]
[58,2021,"Septembre","2021-09-30","Réalisé","C2","P1201","PADIAC",null,"INFRASTRUCTURE","Bâtiment","Boutique BISMA","xxxxxx","Réhabilitation","VEND_70","Association «Vanoussan » de Sayaro",null,null,"m²",0,0]
[59,2021,"Septembre","2021-09-30","Réalisé","C2","P1201","PADIAC",null,"INFRASTRUCTURE","Bâtiment","Boutique BISMA","xxxxxx","Réhabilitation","VEND_71","Association Bwawese Centre d’Appui à la Gestion des Exploitations Familiales",null,null,"m²",0,0]
[60,2021,"Septembre","2021-09-30","Réalisé","C2","P1201","PADIAC",null,"INFRASTRUCTURE","Bâtiment","Magasin de stockage","xxxxxx","Construction","VEND_72","URCEA/BMH",null,null,"m²",0,0]
[61,2021,"Septembre","2021-09-30","Réalisé","C2","P1201","PADIAC",null,"INFRASTRUCTURE","Bâtiment","Magasin de stockage","xxxxxx","Construction","VEND_73","U.R.S.COOP-C.P.A./BHM)",null,null,"m²",1,100]
[62,2021,"Septembre","2021-09-30","Réalisé","C2","P1201","PADIAC",null,"INFRASTRUCTURE","Bâtiment","Magasin de stockage","xxxxxx","Construction",{"$nulls":4},"m²",0,0]
[63,2021,"Septembre","2021-09-30","Réalisé","C2","P1201","PADIAC",null,"INFRASTRUCTURE","Bâtiment","Magasin de stockage","xxxxxx","Construction",{"$nulls":4},"m²",0,0]
[64,2021,"Septembre","2021-09-30","Réalisé","C2","P1201","PADIAC",null,"INFRASTRUCTURE","Bâtiment","Magasin de stockage","xxxxxx","Construction",{"$nulls":4},"m²",0,0]
[65,2021,"Septembre","2021-09-30","Réalisé","C2","P1201","PADIAC",null,"INFRASTRUCTURE","Bâtiment","Magasin de stockage","xxxxxx","Construction",{"$nulls":4},"m²",0,0]
[66,2021,"Septembre","2021-09-30","Réalisé","C2","P1201","PADIAC",null,"INFRASTRUCTURE","Bâtiment","Magasin de stockage","xxxxxx","Construction",{"$nulls":4},"m²",0,0]
[67,2021,"Septembre","2021-09-30","Réalisé","C2","P1201","PADIAC",null,"INFRASTRUCTURE","Bâtiment","Magasin de stockage","xxxxxx","Construction",{"$nulls":4},"m²",0,0]
[68,2021,"Septembre","2021-09-30","Réalisé","C2","P1201","PADIAC",null,"INFRASTRUCTURE","Bâtiment","Magasin de stockage","xxxxxx","Construction",{"$nulls":4},"m²",1,100]
[69,2021,"Septembre","2021-09-30","Réalisé","C2","P1201","PADIAC",null,"INFRASTRUCTURE","Bâtiment","Magasin de stockage","xxxxxx","Construction",{"$nulls":4},"m²",0,0]
[70,2021,"Septembre","2021-09-30","Réalisé","C2","P1201","PADIAC",null,"INFRASTRUCTURE","Bâtiment","Magasin de stockage","xxxxxx","Construction",{"$nulls":4},"m²",0,0]
[71,2021,"Septembre","2021-09-30","Réalisé","C2","P1201","PADIAC",null,"INFRASTRUCTURE","Bâtiment","Magasin de stockage","xxxxxx","Construction",{"$nulls":4},"m²",0,0]
[72,2021,"Septembre","2021-09-30","Réalisé","C2","P1201","PADIAC",null,"INFRASTRUCTURE","Bâtiment","Magasin de stockage","xxxxxx","Construction",{"$nulls":4},"m²",0,0]
[73,2021,"Septembre","2021-09-30","Réalisé","C2","P1201","PADIAC",null,"INFRASTRUCTURE","Bâtiment","Magasin de stockage","xxxxxx","Construction",{"$nulls":4},"m²",0,0]
[74,2021,"Septembre","2021-09-30","Réalisé","C2","P1201","PADIAC",null,"INFRASTRUCTURE","Autres","Aire de séchage","xxxxxx","Construction",{"$nulls":4},"m²",0,0]
[75,2021,"Septembre","2021-09-30","Réalisé","C2","P1201","PADIAC",null,"INFRASTRUCTURE","Autres","Aire de séchage","xxxxxx","Construction",{"$nulls":4},"m²",0,0]
[76,2021,"Septembre","2021-09-30","Réalisé","C2","P1201","PADIAC",null,"INFRASTRUCTURE","Autres","Aire de séchage","xxxxxx","Construction",{"$nulls":4},"m²",0,0]
[77,2021,"Septembre","2021-09-30","Réalisé","C2","P1201","PADIAC",null,"INFRASTRUCTURE","Autres","Aire de séchage","xxxxxx","Construction",{"$nulls":4},"m²",0,0]
[78,2021,"Septembre","2021-09-30","Réalisé","C2","P1201","PADIAC",null,"INFRASTRUCTURE","Autres","Aire de séchage","xxxxxx","Construction",{"$nulls":4},"m²",0,0]
[79,2021,"Septembre","2021-09-30","Réalisé","C2","P1201","PADIAC",null,"INFRASTRUCTURE","Autres","Aire de séchage","xxxxxx","Construction",{"$nulls":4},"m²",0,0]
[80,2021,"Septembre","2021-09-30","Réalisé","C2","P1201","PADIAC",null,"INFRASTRUCTURE","Autres","Aire de séchage","xxxxxx","Construction",{"$nulls":4},"m²",0,0]
[81,2021,"Septembre","2021-09-30","Réalisé","C2","P1201","PADIAC",null,"INFRASTRUCTURE","Autres","Aire de séchage","xxxxxx","Construction",{"$nulls":4},"m²",0,0]
[82,2021,"Septembre","2021-09-30","Réalisé","C2","P1201","PADIAC",null,"INFRASTRUCTURE","Autres","Aire de séchage","xxxxxx","Construction",{"$nulls":4},"m²",0,0]
[83,2021,"Septembre","2021-09-30","Réalisé","C2","P1201","PADIAC",null,"CONSOMMABLES","Petit matériel","Agricole","xxxxxx",{"$nulls":6},0,0]
[84,2021,"Septembre","2021-09-30","Réalisé","C2","P1201","PADIAC",null,"SERVICE","Etude","Plan Marketing","xxxxxx",{"$nulls":5},"P*J",0,0]
[85,2021,"Septembre","2021-09-30","Réalisé","C2","P1201","PADIAC",null,"SERVICE","Etude","Diagnostic Inst. & Organisationnel","xxxxxx",{"$nulls":5},"P*J",1,75]
[86,2021,"Septembre","2021-09-30","Réalisé","C2","P1201","PADIAC",null,"SERVICE","Etude","Situation de référence","xxxxxx",{"$nulls":5},"P*J",0,0]
[87,2021,"Septembre","2021-09-30","Réalisé","C2","P1201","PADIAC",null,"SERVICE","Recherche","Aliment du bétail","xxxxxx",{"$nulls":5},"P*J",0,0]
[88,2021,"Septembre","2021-09-30","Réalisé","C2","P1201","PADIAC",null,"SERVICE","Recherche","Aliment du bétail","xxxxxx",{"$nulls":5},"P*J",0,0]
[89,2021,"Septembre","2021-09-30","Réalisé","C2","P1201","PADIAC",null,"SERVICE","Recherche","Aliment du bétail","xxxxxx",{"$nulls":5},"P*J",0,0]
[90,2021,"Septembre","2021-09-30","Réalisé","C2","P1201","PADIAC",null,"SERVICE","Recherche","Aliment du bétail","xxxxxx",{"$nulls":5},"P*J",0,0]
[91,2021,"Septembre","2021-09-30","Réalisé","C2","P1201","PADIAC",null,"SERVICE","Conseil","Appui-Conseil","xxxxxx",{"$nulls":5},"P*J",0,0]
[92,2021,"Septembre","2021-09-30","Réalisé","C2","P1201","PADIAC",null,"SERVICE","Conseil","Négociation","xxxxxx",{"$nulls":5},"P*J",0,0]
[93,2021,"Septembre","2021-09-30","Réalisé","C2","P1201","PADIAC",null,"IEC","Information","Radio","xxxxxx",{"$nulls":6},0,0]
[94,2021,"Septembre","2021-09-30","Réalisé","C2","P1201","PADIAC",null,"IEC","Information","Radio","xxxxxx",{"$nulls":6},0,0]
[95,2021,"Septembre","2021-09-30","Réalisé","C2","P1201","PADIAC",null,"IEC","Information","Radio","xxxxxx",{"$nulls":6},0,0]
[96,2021,"Septembre","2021-09-30","Réalisé","C2","P1201","PADIAC",null,"IEC","Information","Radio","xxxxxx",{"$nulls":6},0,0]
[97,2021,"Septembre","2021-09-30","Réalisé","C2","P1201","PADIAC",null,"IEC","Information","Atelier","xxxxxx",{"$nulls":6},0,0]
[98,2021,"Septembre","2021-09-30","Réalisé","C2","P1201","PADIAC",null,"IEC","Information","Voyage d'étude","xxxxxx",{"$nulls":6},0,null,2,{"$nulls":3},25,25]
[99,2021,"Septembre","2021-09-30","Réalisé","C2","P1201","PADIAC",null,"IEC","Vulgarisation","Chantier-Ecole","xxxxxx",{"$nulls":6},0,0]
[100,2021,"Septembre","2021-09-30","Réalisé","C2","P1201","PADIAC",null,"IEC","Formation","Formateur","xxxxxx",{"$nulls":6},0]
[101,2021,"Septembre","2021-09-30","Réalisé","C2","P1201","PADIAC",null,"IEC","Formation","Producteur","Aliment xxxxxxxxxxxx",{"$nulls":6},0,null,2,{"$nulls":3},4,6]
[102,2021,"Septembre","2021-09-30","Réalisé","C2","P1201","PADIAC",null,"IEC","Formation","Producteur","Aliment xxxxxxxxxxxx",{"$nulls":6},0,null,5,{"$nulls":3},4,6]
[103,2021,"Septembre","2021-09-30","Réalisé","C2","P1201","PADIAC",null,"IEC","Formation","Producteur","Gestion magasin xxxxx",{"$nulls":6},0,null,10,{"$nulls":3},4,6]
[104,2021,"Septembre","2021-09-30","Réalisé","C2","P1201","PADIAC",null,"IEC","Formation","Producteur","Gestion magasin xxxxx",{"$nulls":6},0,null,2,{"$nulls":3},4,6]
[105,2021,"Septembre","2021-09-30","Réalisé","C2","P1201","PADIAC",null,"IEC","Formation","Producteur","Gestion magasin xxxxx",{"$nulls":6},1,null,1,{"$nulls":3},4,6]
[106,2021,"Septembre","2021-09-30","Réalisé","C2","P1201","PADIAC",null,"IEC","Formation","Producteur","Gestion magasin xxxxx",{"$nulls":6},0,null,5,{"$nulls":3},4,6]
[107,2021,"Septembre","2021-09-30","Réalisé","C2","P1201","PADIAC",null,"IEC","Formation","Producteur","Gestion magasin xxxxx",{"$nulls":6},0,null,2,{"$nulls":3},4,6]
[108,2021,"Septembre","2021-09-30","Réalisé","C2","P1201","PADIAC",null,"IEC","Formation","Producteur","Gestion magasin xxxxx",{"$nulls":6},0,null,3,{"$nulls":3},4,6]
[109,2021,"Septembre","2021-09-30","Réalisé","C2","P1201","PADIAC",null,"FONDS","Crédit producteur",{"$nulls":8},0]
[110,2021,"Septembre","2021-09-30","Réalisé","C2","P1201","PADIAC",null,"FONDS","Crédit producteur",{"$nulls":8},0]
[111,2021,"Octobre","2021-10-31","Réalisé","C2","P1201","PADIAC",null,"INFRASTRUCTURE","Bâtiment","Boutique BISMA","xxxxx","Construction","VEND_72","URCEA/BMH",null,null,"m²",0,0,{"$nulls":6},0]
[112,2021,"Octobre","2021-10-31","Réalisé","C2","P1201","PADIAC",null,"INFRASTRUCTURE","Bâtiment","Boutique BISMA","xxxxxx","Construction","VEND_73","U.R.S.COOP-C.P.A./BHM)",null,null,"m²",1,50,{"$nulls":6},999]
[113,2021,"Octobre","2021-10-31","Réalisé","C2","P1201","PADIAC",null,"INFRASTRUCTURE","Bâtiment","Boutique BISMA","xxxxxx","Réhabilitation","VEND_70","Association «Vanoussan » de Sayaro",null,null,"m²",0,0,{"$nulls":6},0]
[114,2021,"Octobre","2021-10-31","Réalisé","C2","P1201","PADIAC",null,"INFRASTRUCTURE","Bâtiment","Boutique BISMA","xxxxxx","Réhabilitation","VEND_71","Association Bwawese Centre d’Appui à la Gestion des Exploitations Familiales",null,null,"m²",0,0,{"$nulls":6},0]
[115,2021,"Octobre","2021-10-31","Réalisé","C2","P1201","PADIAC",null,"INFRASTRUCTURE","Bâtiment","Magasin de stockage","xxxxxx","Construction","VEND_72","URCEA/BMH",null,null,"m²",1,75,{"$nulls":6},999]
[116,2021,"Octobre","2021-10-31","Réalisé","C2","P1201","PADIAC",null,"INFRASTRUCTURE","Bâtiment","Magasin de stockage","xxxxxx","Construction","VEND_73","U.R.S.COOP-C.P.A./BHM)",null,null,"m²",0,0,{"$nulls":6},0]
[117,2021,"Octobre","2021-10-31","Réalisé","C2","P1201","PADIAC",null,"INFRASTRUCTURE","Bâtiment","Magasin de stockage","xxxxxx","Construction",{"$nulls":4},"m²",0,0,{"$nulls":6},0]
[118,2021,"Octobre","2021-10-31","Réalisé","C2","P1201","PADIAC",null,"INFRASTRUCTURE","Bâtiment","Magasin de stockage","xxxxxx","Construction",{"$nulls":4},"m²",0,0,{"$nulls":6},0]
[119,2021,"Octobre","2021-10-31","Réalisé","C2","P1201","PADIAC",null,"INFRASTRUCTURE","Bâtiment","Magasin de stockage","xxxxxx","Construction",{"$nulls":4},"m²",0,0,{"$nulls":6},0]
[120,2021,"Octobre","2021-10-31","Réalisé","C2","P1201","PADIAC",null,"INFRASTRUCTURE","Bâtiment","Magasin de stockage","xxxxxx","Construction",{"$nulls":4},"m²",0,0,{"$nulls":6},0]
[121,2021,"Octobre","2021-10-31","Réalisé","C2","P1201","PADIAC",null,"INFRASTRUCTURE","Bâtiment","Magasin de stockage","xxxxxx","Construction",{"$nulls":4},"m²",0,0,{"$nulls":6},0]
[122,2021,"Octobre","2021-10-31","Réalisé","C2","P1201","PADIAC",null,"INFRASTRUCTURE","Bâtiment","Magasin de stockage","xxxxxx","Construction",{"$nulls":4},"m²",0,0,{"$nulls":6},0]
[123,2021,"Octobre","2021-10-31","Réalisé","C2","P1201","PADIAC",null,"INFRASTRUCTURE","Bâtiment","Magasin de stockage","xxxxxx","Construction",{"$nulls":4},"m²",0,0,{"$nulls":6},0]
[124,2021,"Octobre","2021-10-31","Réalisé","C2","P1201","PADIAC",null,"INFRASTRUCTURE","Bâtiment","Magasin de stockage","xxxxxx","Construction",{"$nulls":4},"m²",0,0,{"$nulls":6},0]
[125,2021,"Octobre","2021-10-31","Réalisé","C2","P1201","PADIAC",null,"INFRASTRUCTURE","Bâtiment","Magasin de stockage","xxxxxx","Construction",{"$nulls":4},"m²",0,0,{"$nulls":6},0]
[126,2021,"Octobre","2021-10-31","Réalisé","C2","P1201","PADIAC",null,"INFRASTRUCTURE","Bâtiment","Magasin de stockage","xxxxxx","Construction",{"$nulls":4},"m²",0,0,{"$nulls":6},0]
[127,2021,"Octobre","2021-10-31","Réalisé","C2","P1201","PADIAC",null,"INFRASTRUCTURE","Bâtiment","Magasin de stockage","xxxxxx","Construction",{"$nulls":4},"m²",0,0,{"$nulls":6},0]
[128,2021,"Octobre","2021-10-31","Réalisé","C2","P1201","PADIAC",null,"INFRASTRUCTURE","Bâtiment","Magasin de stockage","xxxxxx","Construction",{"$nulls":4},"m²",1,66,{"$nulls":6},999]
[129,2021,"Octobre","2021-10-31","Réalisé","C2","P1201","PADIAC",null,"INFRASTRUCTURE","Autres","Aire de séchage","xxxxxx","Construction",{"$nulls":4},"m²",1,88,{"$nulls":6},999]
[130,2021,"Octobre","2021-10-31","Réalisé","C2","P1201","PADIAC",null,"INFRASTRUCTURE","Autres","Aire de séchage","xxxxxx","Construction",{"$nulls":4},"m²",0,0,{"$nulls":6},0]
[131,2021,"Octobre","2021-10-31","Réalisé","C2","P1201","PADIAC",null,"INFRASTRUCTURE","Autres","Aire de séchage","xxxxxx","Construction",{"$nulls":4},"m²",0,0,{"$nulls":6},0]
[132,2021,"Octobre","2021-10-31","Réalisé","C2","P1201","PADIAC",null,"INFRASTRUCTURE","Autres","Aire de séchage","xxxxxx","Construction",{"$nulls":4},"m²",0,0,{"$nulls":6},0]
[133,2021,"Octobre","2021-10-31","Réalisé","C2","P1201","PADIAC",null,"INFRASTRUCTURE","Autres","Aire de séchage","xxxxxx","Construction",{"$nulls":4},"m²",0,0,{"$nulls":6},0]
[134,2021,"Octobre","2021-10-31","Réalisé","C2","P1201","PADIAC",null,"INFRASTRUCTURE","Autres","Aire de séchage","xxxxxx","Construction",{"$nulls":4},"m²",0,0,{"$nulls":6},0]
[135,2021,"Octobre","2021-10-31","Réalisé","C2","P1201","PADIAC",null,"INFRASTRUCTURE","Autres","Aire de séchage","xxxxxx","Construction",{"$nulls":4},"m²",0,0,{"$nulls":6},0]
[136,2021,"Octobre","2021-10-31","Réalisé","C2","P1201","PADIAC",null,"INFRASTRUCTURE","Autres","Aire de séchage","xxxxxx","Construction",{"$nulls":4},"m²",0,0,{"$nulls":6},0]
[137,2021,"Octobre","2021-10-31","Réalisé","C2","P1201","PADIAC",null,"INFRASTRUCTURE","Autres","Aire de séchage","xxxxxx","Construction",{"$nulls":4},"m²",0,0,{"$nulls":6},0]
[138,2021,"Octobre","2021-10-31","Réalisé","C2","P1201","PADIAC",null,"CONSOMMABLES","Petit matériel","Agricole","xxxxxx",{"$nulls":6},0,0,{"$nulls":6},0]
[139,2021,"Octobre","2021-10-31","Réalisé","C2","P1201","PADIAC",null,"SERVICE","Etude","Plan Marketing","xxxxxx",{"$nulls":5},"P*J",0,0,{"$nulls":6},0]
[140,2021,"Octobre","2021-10-31","Réalisé","C2","P1201","PADIAC",null,"SERVICE","Etude","Diagnostic Inst. & Organisationnel","xxxxxx",{"$nulls":5},"P*J",0,0,{"$nulls":6},0]
[141,2021,"Octobre","2021-10-31","Réalisé","C2","P1201","PADIAC",null,"SERVICE","Etude","Situation de référence","xxxxxx",{"$nulls":5},"P*J",0,0,{"$nulls":6},0]
[142,2021,"Octobre","2021-10-31","Réalisé","C2","P1201","PADIAC",null,"SERVICE","Recherche","Aliment du bétail","xxxxxx",{"$nulls":5},"P*J",0,0,{"$nulls":6},0]
[143,2021,"Octobre","2021-10-31","Réalisé","C2","P1201","PADIAC",null,"SERVICE","Recherche","Aliment du bétail","xxxxxx",{"$nulls":5},"P*J",1,99,{"$nulls":6},999]
[144,2021,"Octobre","2021-10-31","Réalisé","C2","P1201","PADIAC",null,"SERVICE","Recherche","Aliment du bétail","xxxxxx",{"$nulls":5},"P*J",0,0,{"$nulls":6},0]
[145,2021,"Octobre","2021-10-31","Réalisé","C2","P1201","PADIAC",null,"SERVICE","Recherche","Aliment du bétail","xxxxxx",{"$nulls":5},"P*J",1,78,{"$nulls":6},999]
[146,2021,"Octobre","2021-10-31","Réalisé","C2","P1201","PADIAC",null,"SERVICE","Conseil","Appui-Conseil","xxxxxx",{"$nulls":5},"P*J",0,0,{"$nulls":6},0]
[147,2021,"Octobre","2021-10-31","Réalisé","C2","P1201","PADIAC",null,"SERVICE","Conseil","Négociation","xxxxxx",{"$nulls":5},"P*J",0,0,{"$nulls":6},0]
[148,2021,"Octobre","2021-10-31","Réalisé","C2","P1201","PADIAC",null,"IEC","Information","Radio","xxxxxx",{"$nulls":6},0,0,{"$nulls":6},0]
[149,2021,"Octobre","2021-10-31","Réalisé","C2","P1201","PADIAC",null,"IEC","Information","Radio","xxxxxx",{"$nulls":6},0,0,{"$nulls":6},0]
[150,2021,"Octobre","2021-10-31","Réalisé","C2","P1201","PADIAC",null,"IEC","Information","Radio","xxxxxx",{"$nulls":6},0,0,{"$nulls":6},0]
[151,2021,"Octobre","2021-10-31","Réalisé","C2","P1201","PADIAC",null,"IEC","Information","Radio","xxxxxx",{"$nulls":6},0,0,{"$nulls":6},0]
[152,2021,"Octobre","2021-10-31","Réalisé","C2","P1201","PADIAC",null,"IEC","Information","Atelier","xxxxxx",{"$nulls":6},0,0,{"$nulls":6},0]
[153,2021,"Octobre","2021-10-31","Réalisé","C2","P1201","PADIAC",null,"IEC","Information","Voyage d'étude","xxxxxx",{"$nulls":6},0,null,0,null,null,0,0,25,0]
[154,2021,"Octobre","2021-10-31","Réalisé","C2","P1201","PADIAC",null,"IEC","Vulgarisation","Chantier-Ecole","xxxxxx",{"$nulls":6},0,0,0,null,null,0,0,null,0]
[155,2021,"Octobre","2021-10-31","Réalisé","C2","P1201","PADIAC",null,"IEC","Formation","Formateur","xxxxxx",{"$nulls":6},0,{"$nulls":7},0]
[156,2021,"Octobre","2021-10-31","Réalisé","C2","P1201","PADIAC",null,"IEC","Formation","Producteur","Aliment xxxxxxxxxxxx",{"$nulls":6},0,null,0,null,null,0,0,0,0]
[157,2021,"Octobre","2021-10-31","Réalisé","C2","P1201","PADIAC",null,"IEC","Formation","Producteur","Aliment xxxxxxxxxxxx",{"$nulls":6},0,null,0,null,null,0,0,0,0]
[158,2021,"Octobre","2021-10-31","Réalisé","C2","P1201","PADIAC",null,"IEC","Formation","Producteur","Gestion magasin xxxxx",{"$nulls":6},0,null,0,null,null,0,0,0,0]
[159,2021,"Octobre","2021-10-31","Réalisé","C2","P1201","PADIAC",null,"IEC","Formation","Producteur","Gestion magasin xxxxx",{"$nulls":6},0,null,0,null,null,0,0,0,0]
[160,2021,"Octobre","2021-10-31","Réalisé","C2","P1201","PADIAC",null,"IEC","Formation","Producteur","Gestion magasin xxxxx",{"$nulls":6},0,null,0,null,null,0,0,0,0]
[161,2021,"Octobre","2021-10-31","Réalisé","C2","P1201","PADIAC",null,"IEC","Formation","Producteur","Gestion magasin xxxxx",{"$nulls":6},0,null,0,null,null,0,0,0,0]
[162,2021,"Octobre","2021-10-31","Réalisé","C2","P1201","PADIAC",null,"IEC","Formation","Producteur","Gestion magasin xxxxx",{"$nulls":6},0,null,0,null,null,0,0,0,0]
[163,2021,"Octobre","2021-10-31","Réalisé","C2","P1201","PADIAC",null,"IEC","Formation","Producteur","Gestion magasin xxxxx",{"$nulls":6},0,null,0,null,null,0,0,0,0]
[164,2021,"Octobre","2021-10-31","Réalisé","C2","P1201","PADIAC",null,"FONDS","Crédit producteur",{"$nulls":8},0,{"$nulls":7},0]
[165,2021,"Octobre","2021-10-31","Réalisé","C2","P1201","PADIAC",null,"FONDS","Crédit producteur",{"$nulls":8},0,{"$nulls":7},0]
[166,2021,"Décembre","2021-12-31","Programmé","C2","P1201","PADIAC",null,"INFRASTRUCTURE","Bâtiment","Boutique BISMA","xxxxx","Construction","VEND_72","URCEA/BMH",null,null,"m²",1,200,{"$nulls":6},99956]
[167,2021,"Décembre","2021-12-31","Programmé","C2","P1201","PADIAC",null,"INFRASTRUCTURE","Bâtiment","Boutique BISMA","xxxxxx","Construction","VEND_73","U.R.S.COOP-C.P.A./BHM)",null,null,"m²",1,200,{"$nulls":6},99957]
[168,2021,"Décembre","2021-12-31","Programmé","C2","P1201","PADIAC",null,"INFRASTRUCTURE","Bâtiment","Boutique BISMA","xxxxxx","Réhabilitation","VEND_70","Association «Vanoussan » de Sayaro",null,null,"m²",1,100,{"$nulls":6},99958]
[169,2021,"Décembre","2021-12-31","Programmé","C2","P1201","PADIAC",null,"INFRASTRUCTURE","Bâtiment","Boutique BISMA","xxxxxx","Réhabilitation","VEND_71","Association Bwawese Centre d’Appui à la Gestion des Exploitations Familiales",null,null,"m²",1,100,{"$nulls":6},99959]
[170,2021,"Décembre","2021-12-31","Programmé","C2","P1201","PADIAC",null,"INFRASTRUCTURE","Bâtiment","Magasin de stockage","xxxxxx","Construction","VEND_72","URCEA/BMH",null,null,"m²",1,100,{"$nulls":6},99960]
[171,2021,"Décembre","2021-12-31","Programmé","C2","P1201","PADIAC",null,"INFRASTRUCTURE","Bâtiment","Magasin de stockage","xxxxxx","Construction","VEND_73","U.R.S.COOP-C.P.A./BHM)",null,null,"m²",1,100,{"$nulls":6},99961]
[172,2021,"Décembre","2021-12-31","Programmé","C2","P1201","PADIAC",null,"INFRASTRUCTURE","Bâtiment","Magasin de stockage","xxxxxx","Construction",{"$nulls":4},"m²",1,100,{"$nulls":6},99962]
[173,2021,"Décembre","2021-12-31","Programmé","C2","P1201","PADIAC",null,"INFRASTRUCTURE","Bâtiment","Magasin de stockage","xxxxxx","Construction",{"$nulls":4},"m²",1,100,{"$nulls":6},99963]
[174,2021,"Décembre","2021-12-31","Programmé","C2","P1201","PADIAC",null,"INFRASTRUCTURE","Bâtiment","Magasin de stockage","xxxxxx","Construction",{"$nulls":4},"m²",1,100,{"$nulls":6},99964]
[175,2021,"Décembre","2021-12-31","Programmé","C2","P1201","PADIAC",null,"INFRASTRUCTURE","Bâtiment","Magasin de stockage","xxxxxx","Construction",{"$nulls":4},"m²",1,100,{"$nulls":6},99965]
[176,2021,"Décembre","2021-12-31","Programmé","C2","P1201","PADIAC",null,"INFRASTRUCTURE","Bâtiment","Magasin de stockage","xxxxxx","Construction",{"$nulls":4},"m²",1,100,{"$nulls":6},99966]
[177,2021,"Décembre","2021-12-31","Programmé","C2","P1201","PADIAC",null,"INFRASTRUCTURE","Bâtiment","Magasin de stockage","xxxxxx","Construction",{"$nulls":4},"m²",1,100,{"$nulls":6},99967]
[178,2021,"Décembre","2021-12-31","Programmé","C2","P1201","PADIAC",null,"INFRASTRUCTURE","Bâtiment","Magasin de stockage","xxxxxx","Construction",{"$nulls":4},"m²",1,100,{"$nulls":6},99968]
[179,2021,"Décembre","2021-12-31","Programmé","C2","P1201","PADIAC",null,"INFRASTRUCTURE","Bâtiment","Magasin de stockage","xxxxxx","Construction",{"$nulls":4},"m²",1,100,{"$nulls":6},99969]
[180,2021,"Décembre","2021-12-31","Programmé","C2","P1201","PADIAC",null,"INFRASTRUCTURE","Bâtiment","Magasin de stockage","xxxxxx","Construction",{"$nulls":4},"m²",1,100,{"$nulls":6},99970]
[181,2021,"Décembre","2021-12-31","Programmé","C2","P1201","PADIAC",null,"INFRASTRUCTURE","Bâtiment","Magasin de stockage","xxxxxx","Construction",{"$nulls":4},"m²",1,100,{"$nulls":6},99971]
[182,2021,"Décembre","2021-12-31","Programmé","C2","P1201","PADIAC",null,"INFRASTRUCTURE","Bâtiment","Magasin de stockage","xxxxxx","Construction",{"$nulls":4},"m²",1,100,{"$nulls":6},99972]
[183,2021,"Décembre","2021-12-31","Programmé","C2","P1201","PADIAC",null,"INFRASTRUCTURE","Bâtiment","Magasin de stockage","xxxxxx","Construction",{"$nulls":4},"m²",1,100,{"$nulls":6},99973]
[184,2021,"Décembre","2021-12-31","Programmé","C2","P1201","PADIAC",null,"INFRASTRUCTURE","Autres","Aire de séchage","xxxxxx","Construction",{"$nulls":4},"m²",1,100,{"$nulls":6},99974]
[185,2021,"Décembre","2021-12-31","Programmé","C2","P1201","PADIAC",null,"INFRASTRUCTURE","Autres","Aire de séchage","xxxxxx","Construction",{"$nulls":4},"m²",1,100,{"$nulls":6},99975]
[186,2021,"Décembre","2021-12-31","Programmé","C2","P1201","PADIAC",null,"INFRASTRUCTURE","Autres","Aire de séchage","xxxxxx","Construction",{"$nulls":4},"m²",1,100,{"$nulls":6},99976]
[187,2021,"Décembre","2021-12-31","Programmé","C2","P1201","PADIAC",null,"INFRASTRUCTURE","Autres","Aire de séchage","xxxxxx","Construction",{"$nulls":4},"m²",1,100,{"$nulls":6},99977]
[188,2021,"Décembre","2021-12-31","Programmé","C2","P1201","PADIAC",null,"INFRASTRUCTURE","Autres","Aire de séchage","xxxxxx","Construction",{"$nulls":4},"m²",1,100,{"$nulls":6},99978]
[189,2021,"Décembre","2021-12-31","Programmé","C2","P1201","PADIAC",null,"INFRASTRUCTURE","Autres","Aire de séchage","xxxxxx","Construction",{"$nulls":4},"m²",1,100,{"$nulls":6},99979]
[190,2021,"Décembre","2021-12-31","Programmé","C2","P1201","PADIAC",null,"INFRASTRUCTURE","Autres","Aire de séchage","xxxxxx","Construction",{"$nulls":4},"m²",1,100,{"$nulls":6},99980]
[191,2021,"Décembre","2021-12-31","Programmé","C2","P1201","PADIAC",null,"INFRASTRUCTURE","Autres","Aire de séchage","xxxxxx","Construction",{"$nulls":4},"m²",1,100,{"$nulls":6},99981]
[192,2021,"Décembre","2021-12-31","Programmé","C2","P1201","PADIAC",null,"INFRASTRUCTURE","Autres","Aire de séchage","xxxxxx","Construction",{"$nulls":4},"m²",1,100,{"$nulls":6},99982]
[193,2021,"Décembre","2021-12-31","Programmé","C2","P1201","PADIAC",null,"CONSOMMABLES","Petit matériel","Agricole","xxxxxx",{"$nulls":6},1,15,{"$nulls":6},99983]
[194,2021,"Décembre","2021-12-31","Programmé","C2","P1201","PADIAC",null,"SERVICE","Etude","Plan Marketing","xxxxxx",{"$nulls":5},"P*J",1,50,{"$nulls":6},99984]
[195,2021,"Décembre","2021-12-31","Programmé","C2","P1201","PADIAC",null,"SERVICE","Etude","Diagnostic Inst. & Organisationnel","xxxxxx",{"$nulls":5},"P*J",1,75,{"$nulls":6},99985]
[196,2021,"Décembre","2021-12-31","Programmé","C2","P1201","PADIAC",null,"SERVICE","Etude","Situation de référence","xxxxxx",{"$nulls":5},"P*J",1,25,{"$nulls":6},99986]
[197,2021,"Décembre","2021-12-31","Programmé","C2","P1201","PADIAC",null,"SERVICE","Recherche","Aliment du bétail","xxxxxx",{"$nulls":5},"P*J",1,20,{"$nulls":6},99987]
[198,2021,"Décembre","2021-12-31","Programmé","C2","P1201","PADIAC",null,"SERVICE","Recherche","Aliment du bétail","xxxxxx",{"$nulls":5},"P*J",1,120,{"$nulls":6},99988]
[199,2021,"Décembre","2021-12-31","Programmé","C2","P1201","PADIAC",null,"SERVICE","Recherche","Aliment du bétail","xxxxxx",{"$nulls":5},"P*J",1,120,{"$nulls":6},99989]
[200,2021,"Décembre","2021-12-31","Programmé","C2","P1201","PADIAC",null,"SERVICE","Recherche","Aliment du bétail","xxxxxx",{"$nulls":5},"P*J",1,40,{"$nulls":6},99990]
[201,2021,"Décembre","2021-12-31","Programmé","C2","P1201","PADIAC",null,"SERVICE","Conseil","Appui-Conseil","xxxxxx",{"$nulls":5},"P*J",1,60,{"$nulls":6},99991]
[202,2021,"Décembre","2021-12-31","Programmé","C2","P1201","PADIAC",null,"SERVICE","Conseil","Négociation","xxxxxx",{"$nulls":5},"P*J",1,80,{"$nulls":6},99992]
[203,2021,"Décembre","2021-12-31","Programmé","C2","P1201","PADIAC",null,"IEC","Information","Radio","xxxxxx",{"$nulls":6},1,4,{"$nulls":6},99993]
[204,2021,"Décembre","2021-12-31","Programmé","C2","P1201","PADIAC",null,"IEC","Information","Radio","xxxxxx",{"$nulls":6},1,4,{"$nulls":6},99994]
[205,2021,"Décembre","2021-12-31","Programmé","C2","P1201","PADIAC",null,"IEC","Information","Radio","xxxxxx",{"$nulls":6},1,4,{"$nulls":6},99995]
[206,2021,"Décembre","2021-12-31","Programmé","C2","P1201","PADIAC",null,"IEC","Information","Radio","xxxxxx",{"$nulls":6},1,4,{"$nulls":6},99996]
[207,2021,"Décembre","2021-12-31","Programmé","C2","P1201","PADIAC",null,"IEC","Information","Atelier","xxxxxx",{"$nulls":6},1,4,{"$nulls":6},99997]
[208,2021,"Décembre","2021-12-31","Programmé","C2","P1201","PADIAC",null,"IEC","Information","Voyage d'étude","xxxxxx",{"$nulls":6},1,null,2,{"$nulls":3},25,null,99998]
[209,2021,"Décembre","2021-12-31","Programmé","C2","P1201","PADIAC",null,"IEC","Vulgarisation","Chantier-Ecole","xxxxxx",{"$nulls":6},1,25,{"$nulls":6},99999]
[210,2021,"Décembre","2021-12-31","Programmé","C2","P1201","PADIAC",null,"IEC","Formation","Formateur","xxxxxx",{"$nulls":6},1,{"$nulls":7},100000]
[211,2021,"Décembre","2021-12-31","Programmé","C2","P1201","PADIAC",null,"IEC","Formation","Producteur","Aliment xxxxxxxxxxxx",{"$nulls":6},1,null,2,{"$nulls":3},6,null,100000]
[212,2021,"Décembre","2021-12-31","Programmé","C2","P1201","PADIAC",null,"IEC","Formation","Producteur","Aliment xxxxxxxxxxxx",{"$nulls":6},1,null,5,{"$nulls":3},6,null,100000]
[213,2021,"Décembre","2021-12-31","Programmé","C2","P1201","PADIAC",null,"IEC","Formation","Producteur","Gestion magasin xxxxx",{"$nulls":6},1,null,10,{"$nulls":3},6,null,100000]
[214,2021,"Décembre","2021-12-31","Programmé","C2","P1201","PADIAC",null,"IEC","Formation","Producteur","Gestion magasin xxxxx",{"$nulls":6},1,null,2,{"$nulls":3},6,null,100000]
[215,2021,"Décembre","2021-12-31","Programmé","C2","P1201","PADIAC",null,"IEC","Formation","Producteur","Gestion magasin xxxxx",{"$nulls":6},1,null,1,{"$nulls":3},6,null,100000]
[216,2021,"Décembre","2021-12-31","Programmé","C2","P1201","PADIAC",null,"IEC","Formation","Producteur","Gestion magasin xxxxx",{"$nulls":6},1,null,5,{"$nulls":3},6,null,100000]
[217,2021,"Décembre","2021-12-31","Programmé","C2","P1201","PADIAC",null,"IEC","Formation","Producteur","Gestion magasin xxxxx",{"$nulls":6},1,null,2,{"$nulls":3},6,null,100000]
[218,2021,"Décembre","2021-12-31","Programmé","C2","P1201","PADIAC",null,"IEC","Formation","Producteur","Gestion magasin xxxxx",{"$nulls":6},1,null,3,{"$nulls":3},6,null,100000]
[219,2021,"Décembre","2021-12-31","Programmé","C2","P1201","PADIAC",null,"FONDS","Crédit producteur",{"$nulls":8},1]
[220,2021,"Décembre","2021-12-31","Programmé","C2","P1201","PADIAC",null,"FONDS","Crédit producteur",{"$nulls":8},1]
[221,2021,"Août","2021-08-31","Réalisé","C2","P2212","2PATM",null,"INFRASTRUCTURE","Bâtiment","Magasin de stockage","xxxxx","Construction","VEND_72","URCEA/BMH",null,null,"m²",0,0,{"$nulls":6},0]
[222,2021,"Août","2021-08-31","Réalisé","C2","P2212","2PATM",null,"INFRASTRUCTURE","Bâtiment","Magasin de stockage","xxxxxx","Construction","VEND_73","U.R.S.COOP-C.P.A./BHM)",null,null,"m²",1,200,{"$nulls":6},222]
[223,2021,"Août","2021-08-31","Réalisé","C2","P2212","2PATM",null,"INFRASTRUCTURE","Autres","Aire de séchage","xxxxxx","Construction","VEND_70","Association «Vanoussan » de Sayaro",null,null,"m²",1,100,{"$nulls":6},3333]
[224,2021,"Août","2021-08-31","Réalisé","C2","P2212","2PATM",null,"INFRASTRUCTURE","Autres","Aire de séchage","xxxxxx","Construction","VEND_71","Association Bwawese Centre d’Appui à la Gestion des Exploitations Familiales",null,null,"m²",0,0,{"$nulls":6},0]
[225,2021,"Août","2021-08-31","Réalisé","C2","P2212","2PATM",null,"INFRASTRUCTURE","Autres","Aire de séchage","xxxxxx","Construction","VEND_72","URCEA/BMH",null,null,"m²",0,0,{"$nulls":6},0]
[226,2021,"Août","2021-08-31","Réalisé","C2","P2212","2PATM",null,"INFRASTRUCTURE","Autres","Aire de séchage","xxxxxx","Réhabilitation","VEND_73","U.R.S.COOP-C.P.A./BHM)",null,null,"m²",0,0,{"$nulls":6},0]
[227,2021,"Août","2021-08-31","Réalisé","C2","P2212","2PATM",null,"INFRASTRUCTURE","Autres","Aire de séchage","xxxxxx","Réhabilitation",{"$nulls":4},"m²",0,0,{"$nulls":6},0]
[228,2021,"Août","2021-08-31","Réalisé","C2","P2212","2PATM",null,"INFRASTRUCTURE","Autres","Aire de séchage","xxxxxx","Construction",{"$nulls":4},"m²",0,0,{"$nulls":6},0]
[229,2021,"Août","2021-08-31","Réalisé","C2","P2212","2PATM",null,"INFRASTRUCTURE","Autres","Aire de vannage","xxxxxx","Construction",{"$nulls":4},"m²",0,0,{"$nulls":6},0]
[230,2021,"Août","2021-08-31","Réalisé","C2","P2212","2PATM",null,"INFRASTRUCTURE","Bâtiment","Local technique","xxxxxx","Construction",{"$nulls":4},"m²",0,0,{"$nulls":6},0]
[231,2021,"Août","2021-08-31","Réalisé","C2","P2212","2PATM",null,"INFRASTRUCTURE","Bâtiment","Magasin","xxxxxx","Construction",{"$nulls":4},"m²",0,0,{"$nulls":6},0]
[232,2021,"Août","2021-08-31","Réalisé","C2","P2212","2PATM",null,"EQUIPEMENT","Agricole","Drone agricole","xxxxxx",{"$nulls":6},0,{"$nulls":7},0]
[233,2021,"Août","2021-08-31","Réalisé","C2","P2212","2PATM",null,"EQUIPEMENT","Agricole","Drone agricole","xxxxxx",{"$nulls":6},0,{"$nulls":7},0]
[234,2021,"Août","2021-08-31","Réalisé","C2","P2212","2PATM",null,"EQUIPEMENT","Agricole","Bascule","xxxxxx",{"$nulls":6},0,{"$nulls":7},0]
[235,2021,"Août","2021-08-31","Réalisé","C2","P2212","2PATM",null,"EQUIPEMENT","Agricole","Trieuse optique","xxxxxx",{"$nulls":6},1,{"$nulls":7},44]
[236,2021,"Août","2021-08-31","Réalisé","C2","P2212","2PATM",null,"EQUIPEMENT","Divers","Machine à coudre","xxxxxx",{"$nulls":6},1,{"$nulls":7},555]
[237,2021,"Août","2021-08-31","Réalisé","C2","P2212","2PATM",null,"EQUIPEMENT","Transport","Véhicule","xxxxxx",{"$nulls":6},0,{"$nulls":7},0]
[238,2021,"Août","2021-08-31","Réalisé","C2","P2212","2PATM",null,"EQUIPEMENT","Bureau","Ordinateur","xxxxxx",{"$nulls":6},0,{"$nulls":7},0]
[239,2021,"Août","2021-08-31","Réalisé","C2","P2212","2PATM",null,"EQUIPEMENT","Bureau","Ordinateur","xxxxxx",{"$nulls":6},0,{"$nulls":7},0]
[240,2021,"Août","2021-08-31","Réalisé","C2","P2212","2PATM",null,"EQUIPEMENT","Divers","Climatiseur","xxxxxx",{"$nulls":6},0,{"$nulls":7},0]
[241,2021,"Août","2021-08-31","Réalisé","C2","P2212","2PATM",null,"EQUIPEMENT","Divers","Machine à coudre","xxxxxx",{"$nulls":6},1,{"$nulls":7},666]
[242,2021,"Août","2021-08-31","Réalisé","C2","P2212","2PATM",null,"CONSOMMABLES","Petit Matériel","Agricole","xxxxxx",{"$nulls":6},0,{"$nulls":7},0]
[243,2021,"Août","2021-08-31","Réalisé","C2","P2212","2PATM",null,"SERVICE","Etude","Situation de référence","xxxxxx",{"$nulls":5},"P*J",0,0,{"$nulls":6},0]
[244,2021,"Août","2021-08-31","Réalisé","C2","P2212","2PATM",null,"SERVICE","Etude","Diagnostic Inst. Orga.","xxxxxx",{"$nulls":5},"P*J",1,10,{"$nulls":6},777]
[245,2021,"Août","2021-08-31","Réalisé","C2","P2212","2PATM",null,"SERVICE","Etude","Plan de renforcement des capacités","xxxxxx",{"$nulls":5},"P*J",1,40,{"$nulls":6},8888]
[246,2021,"Août","2021-08-31","Réalisé","C2","P2212","2PATM",null,"IEC","Information","Atelier","xxxxxx",{"$nulls":6},0,{"$nulls":7},0]
[247,2021,"Août","2021-08-31","Réalisé","C2","P2212","2PATM",null,"IEC","Formation","Formateur","AAAAAAA",{"$nulls":6},0,null,0,{"$nulls":3},0,null,0]
[248,2021,"Août","2021-08-31","Réalisé","C2","P2212","2PATM",null,"IEC","Formation","Formateur","BBBBBBB",{"$nulls":6},0,null,0,null,null,0,0,null,0]
[249,2021,"Août","2021-08-31","Réalisé","C2","P2212","2PATM",null,"IEC","Formation","Producteur","techniques d’intensification agro écologique ",{"$nulls":6},0,null,0,null,null,0,0,null,0]
[250,2021,"Août","2021-08-31","Réalisé","C2","P2212","2PATM",null,"IEC","Vulgarisation","Champs-Ecole","xxxxxx",{"$nulls":6},22,{"$nulls":7},0]
[251,2021,"Août","2021-08-31","Réalisé","C2","P2212","2PATM",null,"IEC","Vulgarisation","Champs-Ecole","xxxxxx",{"$nulls":6},22,{"$nulls":7},0]
[252,2021,"Août","2021-08-31","Réalisé","C2","P2212","2PATM",null,"IEC","Vulgarisation","Démonstration","xxxxxx",{"$nulls":6},22,{"$nulls":7},0]
[253,2021,"Septembre","2021-09-30","Réalisé","C2","P2212","2PATM",null,"INFRASTRUCTURE","Bâtiment","Magasin de stockage","xxxxx","Construction","VEND_72","URCEA/BMH",null,null,"m²",1,200,{"$nulls":6},55555]
[254,2021,"Septembre","2021-09-30","Réalisé","C2","P2212","2PATM",null,"INFRASTRUCTURE","Bâtiment","Magasin de stockage","xxxxxx","Construction","VEND_73","U.R.S.COOP-C.P.A./BHM)",null,null,"m²",0,0,{"$nulls":6},0]
[255,2021,"Septembre","2021-09-30","Réalisé","C2","P2212","2PATM",null,"INFRASTRUCTURE","Autres","Aire de séchage","xxxxxx","Construction","VEND_70","Association «Vanoussan » de Sayaro",null,null,"m²",0,0,{"$nulls":6},0]
[256,2021,"Septembre","2021-09-30","Réalisé","C2","P2212","2PATM",null,"INFRASTRUCTURE","Autres","Aire de séchage","xxxxxx","Construction","VEND_71","Association Bwawese Centre d’Appui à la Gestion des Exploitations Familiales",null,null,"m²",0,0,{"$nulls":6},0]
[257,2021,"Septembre","2021-09-30","Réalisé","C2","P2212","2PATM",null,"INFRASTRUCTURE","Autres","Aire de séchage","xxxxxx","Construction","VEND_72","URCEA/BMH",null,null,"m²",0,0,{"$nulls":6},0]
[258,2021,"Septembre","2021-09-30","Réalisé","C2","P2212","2PATM",null,"INFRASTRUCTURE","Autres","Aire de séchage","xxxxxx","Réhabilitation","VEND_73","U.R.S.COOP-C.P.A./BHM)",null,null,"m²",0,0,{"$nulls":6},0]
[259,2021,"Septembre","2021-09-30","Réalisé","C2","P2212","2PATM",null,"INFRASTRUCTURE","Autres","Aire de séchage","xxxxxx","Réhabilitation",{"$nulls":4},"m²",1,100,{"$nulls":6},55555]
[260,2021,"Septembre","2021-09-30","Réalisé","C2","P2212","2PATM",null,"INFRASTRUCTURE","Autres","Aire de séchage","xxxxxx","Construction",{"$nulls":4},"m²",0,0,{"$nulls":6},0]
[261,2021,"Septembre","2021-09-30","Réalisé","C2","P2212","2PATM",null,"INFRASTRUCTURE","Autres","Aire de vannage","xxxxxx","Construction",{"$nulls":4},"m²",1,50,{"$nulls":6},444]
[262,2021,"Septembre","2021-09-30","Réalisé","C2","P2212","2PATM",null,"INFRASTRUCTURE","Bâtiment","Local technique","xxxxxx","Construction",{"$nulls":4},"m²",0,0,{"$nulls":6},0]
[263,2021,"Septembre","2021-09-30","Réalisé","C2","P2212","2PATM",null,"INFRASTRUCTURE","Bâtiment","Magasin","xxxxxx","Construction",{"$nulls":4},"m²",0,0,{"$nulls":6},0]
[264,2021,"Septembre","2021-09-30","Réalisé","C2","P2212","2PATM",null,"EQUIPEMENT","Agricole","Drone agricole","xxxxxx",{"$nulls":6},0,{"$nulls":7},0]
[265,2021,"Septembre","2021-09-30","Réalisé","C2","P2212","2PATM",null,"EQUIPEMENT","Agricole","Drone agricole","xxxxxx",{"$nulls":6},0,{"$nulls":7},0]
[266,2021,"Septembre","2021-09-30","Réalisé","C2","P2212","2PATM",null,"EQUIPEMENT","Agricole","Bascule","xxxxxx",{"$nulls":6},0,{"$nulls":7},0]
[267,2021,"Septembre","2021-09-30","Réalisé","C2","P2212","2PATM",null,"EQUIPEMENT","Agricole","Trieuse optique","xxxxxx",{"$nulls":6},0,{"$nulls":7},0]
[268,2021,"Septembre","2021-09-30","Réalisé","C2","P2212","2PATM",null,"EQUIPEMENT","Divers","Machine à coudre","xxxxxx",{"$nulls":6},0,{"$nulls":7},0]
[269,2021,"Septembre","2021-09-30","Réalisé","C2","P2212","2PATM",null,"EQUIPEMENT","Transport","Véhicule","xxxxxx",{"$nulls":6},0,{"$nulls":7},0]
[270,2021,"Septembre","2021-09-30","Réalisé","C2","P2212","2PATM",null,"EQUIPEMENT","Bureau","Ordinateur","xxxxxx",{"$nulls":6},0,{"$nulls":7},0]
[271,2021,"Septembre","2021-09-30","Réalisé","C2","P2212","2PATM",null,"EQUIPEMENT","Bureau","Ordinateur","xxxxxx",{"$nulls":6},0,{"$nulls":7},0]
[272,2021,"Septembre","2021-09-30","Réalisé","C2","P2212","2PATM",null,"EQUIPEMENT","Divers","Climatiseur","xxxxxx",{"$nulls":6},0,{"$nulls":7},0]
[273,2021,"Septembre","2021-09-30","Réalisé","C2","P2212","2PATM",null,"EQUIPEMENT","Divers","Machine à coudre","xxxxxx",{"$nulls":6},0,{"$nulls":7},0]
[274,2021,"Septembre","2021-09-30","Réalisé","C2","P2212","2PATM",null,"CONSOMMABLES","Petit Matériel","Agricole","xxxxxx",{"$nulls":6},0,{"$nulls":7},0]
[275,2021,"Septembre","2021-09-30","Réalisé","C2","P2212","2PATM",null,"SERVICE","Etude","Situation de référence","xxxxxx",{"$nulls":5},"P*J",0,0,{"$nulls":6},0]
[276,2021,"Septembre","2021-09-30","Réalisé","C2","P2212","2PATM",null,"SERVICE","Etude","Diagnostic Inst. Orga.","xxxxxx",{"$nulls":5},"P*J",0,0,{"$nulls":6},0]
[277,2021,"Septembre","2021-09-30","Réalisé","C2","P2212","2PATM",null,"SERVICE","Etude","Plan de renforcement des capacités","xxxxxx",{"$nulls":5},"P*J",0,0,{"$nulls":6},0]
[278,2021,"Septembre","2021-09-30","Réalisé","C2","P2212","2PATM",null,"IEC","Information","Atelier","xxxxxx",{"$nulls":6},0,{"$nulls":7},0]
[279,2021,"Septembre","2021-09-30","Réalisé","C2","P2212","2PATM",null,"IEC","Formation","Formateur","AAAAAAA",{"$nulls":6},1,null,2,{"$nulls":3},33,null,909999]
[280,2021,"Septembre","2021-09-30","Réalisé","C2","P2212","2PATM",null,"IEC","Formation","Formateur","BBBBBBB",{"$nulls":6},1,null,5,{"$nulls":3},10,null,9999]
[281,2021,"Septembre","2021-09-30","Réalisé","C2","P2212","2PATM",null,"IEC","Formation","Producteur","techniques d’intensification agro écologique ",{"$nulls":6},1,null,3,{"$nulls":3},99,null,999]
[282,2021,"Septembre","2021-09-30","Réalisé","C2","P2212","2PATM",null,"IEC","Vulgarisation","Chantier-Ecole","xxxxxx",{"$nulls":6},33,{"$nulls":7},0]
[283,2021,"Septembre","2021-09-30","Réalisé","C2","P2212","2PATM",null,"IEC","Vulgarisation","Champs-Ecole","xxxxxx",{"$nulls":6},33,{"$nulls":7},0]
[284,2021,"Septembre","2021-09-30","Réalisé","C2","P2212","2PATM",null,"IEC","Vulgarisation","Démonstration","xxxxxx",{"$nulls":6},33,{"$nulls":7},0]
[285,2021,"Octobre","2021-10-31","Réalisé","C2","P2212","2PATM",null,"INFRASTRUCTURE","Bâtiment","Magasin de stockage","xxxxx","Construction","VEND_72","URCEA/BMH",null,null,"m²",0,0,{"$nulls":6},0]
[286,2021,"Octobre","2021-10-31","Réalisé","C2","P2212","2PATM",null,"INFRASTRUCTURE","Bâtiment","Magasin de stockage","xxxxxx","Construction","VEND_73","U.R.S.COOP-C.P.A./BHM)",null,null,"m²",0,0,{"$nulls":6},0]
[287,2021,"Octobre","2021-10-31","Réalisé","C2","P2212","2PATM",null,"INFRASTRUCTURE","Autres","Aire de séchage","xxxxxx","Construction","VEND_70","Association «Vanoussan » de Sayaro",null,null,"m²",0,0,{"$nulls":6},0]
[288,2021,"Octobre","2021-10-31","Réalisé","C2","P2212","2PATM",null,"INFRASTRUCTURE","Autres","Aire de séchage","xxxxxx","Construction","VEND_71","Association Bwawese Centre d’Appui à la Gestion des Exploitations Familiales",null,null,"m²",1,100,{"$nulls":6},77]
[289,2021,"Octobre","2021-10-31","Réalisé","C2","P2212","2PATM",null,"INFRASTRUCTURE","Autres","Aire de séchage","xxxxxx","Construction","VEND_72","URCEA/BMH",null,null,"m²",1,100,{"$nulls":6},77]
[290,2021,"Octobre","2021-10-31","Réalisé","C2","P2212","2PATM",null,"INFRASTRUCTURE","Autres","Aire de séchage","xxxxxx","Réhabilitation","VEND_73","U.R.S.COOP-C.P.A./BHM)",null,null,"m²",1,100,{"$nulls":6},77]
[291,2021,"Octobre","2021-10-31","Réalisé","C2","P2212","2PATM",null,"INFRASTRUCTURE","Autres","Aire de séchage","xxxxxx","Réhabilitation",{"$nulls":4},"m²",0,0,{"$nulls":6},0]
[292,2021,"Octobre","2021-10-31","Réalisé","C2","P2212","2PATM",null,"INFRASTRUCTURE","Autres","Aire de séchage","xxxxxx","Construction",{"$nulls":4},"m²",1,250,{"$nulls":6},77]
[293,2021,"Octobre","2021-10-31","Réalisé","C2","P2212","2PATM",null,"INFRASTRUCTURE","Autres","Aire de vannage","xxxxxx","Construction",{"$nulls":4},"m²",0,0,{"$nulls":6},0]
[294,2021,"Octobre","2021-10-31","Réalisé","C2","P2212","2PATM",null,"INFRASTRUCTURE","Bâtiment","Local technique","xxxxxx","Construction",{"$nulls":4},"m²",0,0,{"$nulls":6},0]
[295,2021,"Octobre","2021-10-31","Réalisé","C2","P2212","2PATM",null,"INFRASTRUCTURE","Bâtiment","Magasin","xxxxxx","Construction",{"$nulls":4},"m²",0,0,{"$nulls":6},0]
[296,2021,"Octobre","2021-10-31","Réalisé","C2","P2212","2PATM",null,"EQUIPEMENT","Agricole","Drone agricole","xxxxxx",{"$nulls":6},1,{"$nulls":7},88]
[297,2021,"Octobre","2021-10-31","Réalisé","C2","P2212","2PATM",null,"EQUIPEMENT","Agricole","Drone agricole","xxxxxx",{"$nulls":6},0,{"$nulls":7},0]
[298,2021,"Octobre","2021-10-31","Réalisé","C2","P2212","2PATM",null,"EQUIPEMENT","Agricole","Bascule","xxxxxx",{"$nulls":6},0,{"$nulls":7},0]
[299,2021,"Octobre","2021-10-31","Réalisé","C2","P2212","2PATM",null,"EQUIPEMENT","Agricole","Trieuse optique","xxxxxx",{"$nulls":6},0,{"$nulls":7},0]
[300,2021,"Octobre","2021-10-31","Réalisé","C2","P2212","2PATM",null,"EQUIPEMENT","Divers","Machine à coudre","xxxxxx",{"$nulls":6},0,{"$nulls":7},0]
[301,2021,"Octobre","2021-10-31","Réalisé","C2","P2212","2PATM",null,"EQUIPEMENT","Transport","Véhicule","xxxxxx",{"$nulls":6},0,{"$nulls":7},0]
[302,2021,"Octobre","2021-10-31","Réalisé","C2","P2212","2PATM",null,"EQUIPEMENT","Bureau","Ordinateur","xxxxxx",{"$nulls":6},0,{"$nulls":7},0]
[303,2021,"Octobre","2021-10-31","Réalisé","C2","P2212","2PATM",null,"EQUIPEMENT","Bureau","Ordinateur","xxxxxx",{"$nulls":6},0,{"$nulls":7},0]
[304,2021,"Octobre","2021-10-31","Réalisé","C2","P2212","2PATM",null,"EQUIPEMENT","Divers","Climatiseur","xxxxxx",{"$nulls":6},0,{"$nulls":7},0]
[305,2021,"Octobre","2021-10-31","Réalisé","C2","P2212","2PATM",null,"EQUIPEMENT","Divers","Machine à coudre","xxxxxx",{"$nulls":6},0,{"$nulls":7},0]
[306,2021,"Octobre","2021-10-31","Réalisé","C2","P2212","2PATM",null,"CONSOMMABLES","Petit Matériel","Agricole","xxxxxx",{"$nulls":6},0,{"$nulls":7},0]
[307,2021,"Octobre","2021-10-31","Réalisé","C2","P2212","2PATM",null,"SERVICE","Etude","Situation de référence","xxxxxx",{"$nulls":5},"P*J",1,20,{"$nulls":6},999]
[308,2021,"Octobre","2021-10-31","Réalisé","C2","P2212","2PATM",null,"SERVICE","Etude","Diagnostic Inst. Orga.","xxxxxx",{"$nulls":5},"P*J",0,0,{"$nulls":6},0]
[309,2021,"Octobre","2021-10-31","Réalisé","C2","P2212","2PATM",null,"SERVICE","Etude","Plan de renforcement des capacités","xxxxxx",{"$nulls":5},"P*J",0,0,{"$nulls":6},0]
[310,2021,"Octobre","2021-10-31","Réalisé","C2","P2212","2PATM",null,"IEC","Information","Atelier","xxxxxx",{"$nulls":6},0,{"$nulls":7},0]
[311,2021,"Octobre","2021-10-31","Réalisé","C2","P2212","2PATM",null,"IEC","Formation","Formateur","AAAAAAA",{"$nulls":6},0,null,0,null,null,0,0,null,0]
[312,2021,"Octobre","2021-10-31","Réalisé","C2","P2212","2PATM",null,"IEC","Formation","Formateur","BBBBBBB",{"$nulls":6},0,null,0,null,null,0,0,null,0]
[313,2021,"Octobre","2021-10-31","Réalisé","C2","P2212","2PATM",null,"IEC","Formation","Producteur","techniques d’intensification agro écologique ",{"$nulls":6},0,null,0,null,null,0,0,null,0]
[314,2021,"Octobre","2021-10-31","Réalisé","C2","P2212","2PATM",null,"IEC","Vulgarisation","Chantier-Ecole","xxxxxx",{"$nulls":6},44,{"$nulls":7},0]
[315,2021,"Octobre","2021-10-31","Réalisé","C2","P2212","2PATM",null,"IEC","Vulgarisation","Champs-Ecole","xxxxxx",{"$nulls":6},44,{"$nulls":7},0]
[316,2021,"Octobre","2021-10-31","Réalisé","C2","P2212","2PATM",null,"IEC","Vulgarisation","Démonstration","xxxxxx",{"$nulls":6},44,{"$nulls":7},0]
[317,2021,"Décembre","2021-12-31","Programmé","C2","P2212","2PATM",null,"INFRASTRUCTURE","Bâtiment","Magasin de stockage","xxxxx","Construction","VEND_72","URCEA/BMH",null,null,"m²",1,200,{"$nulls":6},888]
[318,2021,"Décembre","2021-12-31","Programmé","C2","P2212","2PATM",null,"INFRASTRUCTURE","Bâtiment","Magasin de stockage","xxxxxx","Construction","VEND_73","U.R.S.COOP-C.P.A./BHM)",null,null,"m²",1,200,{"$nulls":6},888]
[319,2021,"Décembre","2021-12-31","Programmé","C2","P2212","2PATM",null,"INFRASTRUCTURE","Autres","Aire de séchage","xxxxxx","Construction","VEND_70","Association «Vanoussan » de Sayaro",null,null,"m²",1,100,{"$nulls":6},888]
[320,2021,"Décembre","2021-12-31","Programmé","C2","P2212","2PATM",null,"INFRASTRUCTURE","Autres","Aire de séchage","xxxxxx","Construction","VEND_71","Association Bwawese Centre d’Appui à la Gestion des Exploitations Familiales",null,null,"m²",1,100,{"$nulls":6},888]
[321,2021,"Décembre","2021-12-31","Programmé","C2","P2212","2PATM",null,"INFRASTRUCTURE","Autres","Aire de séchage","xxxxxx","Construction","VEND_72","URCEA/BMH",null,null,"m²",1,100,{"$nulls":6},888]
[322,2021,"Décembre","2021-12-31","Programmé","C2","P2212","2PATM",null,"INFRASTRUCTURE","Autres","Aire de séchage","xxxxxx","Réhabilitation","VEND_73","U.R.S.COOP-C.P.A./BHM)",null,null,"m²",1,100,{"$nulls":6},888]
[323,2021,"Décembre","2021-12-31","Programmé","C2","P2212","2PATM",null,"INFRASTRUCTURE","Autres","Aire de séchage","xxxxxx","Réhabilitation",{"$nulls":4},"m²",1,100,{"$nulls":6},888]
[324,2021,"Décembre","2021-12-31","Programmé","C2","P2212","2PATM",null,"INFRASTRUCTURE","Autres","Aire de séchage","xxxxxx","Construction",{"$nulls":4},"m²",1,250,{"$nulls":6},888]
[325,2021,"Décembre","2021-12-31","Programmé","C2","P2212","2PATM",null,"INFRASTRUCTURE","Autres","Aire de vannage","xxxxxx","Construction",{"$nulls":4},"m²",1,50,{"$nulls":6},888]
[326,2021,"Décembre","2021-12-31","Programmé","C2","P2212","2PATM",null,"INFRASTRUCTURE","Bâtiment","Local technique","xxxxxx","Construction",{"$nulls":4},"m²",1,25,{"$nulls":6},888]
[327,2021,"Décembre","2021-12-31","Programmé","C2","P2212","2PATM",null,"INFRASTRUCTURE","Bâtiment","Magasin","xxxxxx","Construction",{"$nulls":4},"m²",1,100,{"$nulls":6},888]
[328,2021,"Décembre","2021-12-31","Programmé","C2","P2212","2PATM",null,"EQUIPEMENT","Agricole","Drone agricole","xxxxxx",{"$nulls":6},1,{"$nulls":7},888]
[329,2021,"Décembre","2021-12-31","Programmé","C2","P2212","2PATM",null,"EQUIPEMENT","Agricole","Drone agricole","xxxxxx",{"$nulls":6},1,{"$nulls":7},888]
[330,2021,"Décembre","2021-12-31","Programmé","C2","P2212","2PATM",null,"EQUIPEMENT","Agricole","Bascule","xxxxxx",{"$nulls":6},1,{"$nulls":7},888]
[331,2021,"Décembre","2021-12-31","Programmé","C2","P2212","2PATM",null,"EQUIPEMENT","Agricole","Trieuse optique","xxxxxx",{"$nulls":6},1,{"$nulls":7},888]
[332,2021,"Décembre","2021-12-31","Programmé","C2","P2212","2PATM",null,"EQUIPEMENT","Divers","Machine à coudre","xxxxxx",{"$nulls":6},1,{"$nulls":7},888]
[333,2021,"Décembre","2021-12-31","Programmé","C2","P2212","2PATM",null,"EQUIPEMENT","Transport","Véhicule","xxxxxx",{"$nulls":6},1,{"$nulls":7},888]
[334,2021,"Décembre","2021-12-31","Programmé","C2","P2212","2PATM",null,"EQUIPEMENT","Bureau","Ordinateur","xxxxxx",{"$nulls":6},1,{"$nulls":7},888]
[335,2021,"Décembre","2021-12-31","Programmé","C2","P2212","2PATM",null,"EQUIPEMENT","Bureau","Ordinateur","xxxxxx",{"$nulls":6},1,{"$nulls":7},888]
[336,2021,"Décembre","2021-12-31","Programmé","C2","P2212","2PATM",null,"EQUIPEMENT","Divers","Climatiseur","xxxxxx",{"$nulls":6},1,{"$nulls":7},888]
[337,2021,"Décembre","2021-12-31","Programmé","C2","P2212","2PATM",null,"EQUIPEMENT","Divers","Machine à coudre","xxxxxx",{"$nulls":6},1,{"$nulls":7},888]
[338,2021,"Décembre","2021-12-31","Programmé","C2","P2212","2PATM",null,"CONSOMMABLES","Petit Matériel","Agricole","xxxxxx",{"$nulls":6},1,{"$nulls":7},888]
[339,2021,"Décembre","2021-12-31","Programmé","C2","P2212","2PATM",null,"SERVICE","Etude","Situation de référence","xxxxxx",{"$nulls":5},"P*J",1,20,{"$nulls":6},888]
[340,2021,"Décembre","2021-12-31","Programmé","C2","P2212","2PATM",null,"SERVICE","Etude","Diagnostic Inst. Orga.","xxxxxx",{"$nulls":5},"P*J",1,10,{"$nulls":6},888]
[341,2021,"Décembre","2021-12-31","Programmé","C2","P2212","2PATM",null,"SERVICE","Etude","Plan de renforcement des capacités","xxxxxx",{"$nulls":5},"P*J",1,40,{"$nulls":6},888]
[342,2021,"Décembre","2021-12-31","Programmé","C2","P2212","2PATM",null,"IEC","Information","Atelier","xxxxxx",{"$nulls":6},1,{"$nulls":7},888]
[343,2021,"Décembre","2021-12-31","Programmé","C2","P2212","2PATM",null,"IEC","Formation","Formateur","AAAAAAA",{"$nulls":6},1,null,2,{"$nulls":3},33,null,888]
[344,2021,"Décembre","2021-12-31","Programmé","C2","P2212","2PATM",null,"IEC","Formation","Formateur","BBBBBBB",{"$nulls":6},1,null,5,{"$nulls":3},10,null,888]
[345,2021,"Décembre","2021-12-31","Programmé","C2","P2212","2PATM",null,"IEC","Formation","Producteur","techniques d’intensification agro écologique ",{"$nulls":6},1,null,3,{"$nulls":3},99,null,888]
[346,2021,"Décembre","2021-12-31","Programmé","C2","P2212","2PATM",null,"IEC","Vulgarisation","Chantier-Ecole","xxxxxx",{"$nulls":6},777,{"$nulls":7},888]
[347,2021,"Décembre","2021-12-31","Programmé","C2","P2212","2PATM",null,"IEC","Vulgarisation","Champs-Ecole","xxxxxx",{"$nulls":6},888,{"$nulls":7},888]
[348,2021,"Décembre","2021-12-31","Programmé","C2","P2212","2PATM",null,"IEC","Vulgarisation","Démonstration","xxxxxx",{"$nulls":6},999,{"$nulls":7},888]
[349,2021,"Août","2021-08-31","Réalisé","C2","P1201","PADIAC",null,"INFRASTRUCTURE","Bâtiment","Boutique BISMA","xxxxx","Construction","VEND_72","URCEA/BMH",null,null,"m²",999,0,{"$nulls":6},0,0]
[350,2021,"Août","2021-08-31","Réalisé","C2","P1201","PADIAC",null,"INFRASTRUCTURE","Bâtiment","Boutique BISMA","xxxxxx","Construction","VEND_73","U.R.S.COOP-C.P.A./BHM)",null,null,"m²",0,0,{"$nulls":6},0,0]
[351,2021,"Août","2021-08-31","Réalisé","C2","P1201","PADIAC",null,"INFRASTRUCTURE","Bâtiment","Boutique BISMA","xxxxxx","Réhabilitation","VEND_70","Association «Vanoussan » de Sayaro",null,null,"m²",1,100,{"$nulls":6},99959]
[352,2021,"Août","2021-08-31","Réalisé","C2","P1201","PADIAC",null,"INFRASTRUCTURE","Bâtiment","Boutique BISMA","xxxxxx","Réhabilitation","VEND_71","Association Bwawese Centre d’Appui à la Gestion des Exploitations Familiales",null,null,"m²",null,0,{"$nulls":6},0,0]
[353,2021,"Août","2021-08-31","Réalisé","C2","P1201","PADIAC",null,"INFRASTRUCTURE","Bâtiment","Magasin de stockage","xxxxxx","Construction","VEND_72","URCEA/BMH",null,null,"m²",null,0,{"$nulls":6},0,0]
[354,2021,"Août","2021-08-31","Réalisé","C2","P1201","PADIAC",null,"INFRASTRUCTURE","Bâtiment","Magasin de stockage","xxxxxx","Construction","VEND_73","U.R.S.COOP-C.P.A./BHM)",null,null,"m²",null,0,{"$nulls":6},0,0]
[355,2021,"Août","2021-08-31","Réalisé","C2","P1201","PADIAC",null,"INFRASTRUCTURE","Bâtiment","Magasin de stockage","xxxxxx","Construction",{"$nulls":4},"m²",null,100,{"$nulls":6},0]
[356,2021,"Août","2021-08-31","Réalisé","C2","P1201","PADIAC",null,"INFRASTRUCTURE","Bâtiment","Magasin de stockage","xxxxxx","Construction",{"$nulls":4},"m²",null,0,{"$nulls":6},0,0]
[357,2021,"Août","2021-08-31","Réalisé","C2","P1201","PADIAC",null,"INFRASTRUCTURE","Bâtiment","Magasin de stockage","xxxxxx","Construction",{"$nulls":4},"m²",null,0,{"$nulls":6},0,0]
[358,2021,"Août","2021-08-31","Réalisé","C2","P1201","PADIAC",null,"INFRASTRUCTURE","Bâtiment","Magasin de stockage","xxxxxx","Construction",{"$nulls":4},"m²",null,0,{"$nulls":6},0,0]
[359,2021,"Août","2021-08-31","Réalisé","C2","P1201","PADIAC",null,"INFRASTRUCTURE","Bâtiment","Magasin de stockage","xxxxxx","Construction",{"$nulls":4},"m²",null,0,{"$nulls":6},0,0]
[360,2021,"Août","2021-08-31","Réalisé","C2","P1201","PADIAC",null,"INFRASTRUCTURE","Bâtiment","Magasin de stockage","xxxxxx","Construction",{"$nulls":4},"m²",null,0,{"$nulls":6},0,0]
[361,2021,"Août","2021-08-31","Réalisé","C2","P1201","PADIAC",null,"INFRASTRUCTURE","Bâtiment","Magasin de stockage","xxxxxx","Construction",{"$nulls":4},"m²",0,0,{"$nulls":6},0,0]
[362,2021,"Août","2021-08-31","Réalisé","C2","P1201","PADIAC",null,"INFRASTRUCTURE","Bâtiment","Magasin de stockage","xxxxxx","Construction",{"$nulls":4},"m²",0,0,{"$nulls":6},0,0]
[363,2021,"Août","2021-08-31","Réalisé","C2","P1201","PADIAC",null,"INFRASTRUCTURE","Bâtiment","Magasin de stockage","xxxxxx","Construction",{"$nulls":4},"m²",0,0,{"$nulls":6},0,0]
[364,2021,"Août","2021-08-31","Réalisé","C2","P1201","PADIAC",null,"INFRASTRUCTURE","Bâtiment","Magasin de stockage","xxxxxx","Construction",{"$nulls":4},"m²",1,100,{"$nulls":6},0]
[365,2021,"Août","2021-08-31","Réalisé","C2","P1201","PADIAC",null,"INFRASTRUCTURE","Bâtiment","Magasin de stockage","xxxxxx","Construction",{"$nulls":4},"m²",0,0,{"$nulls":6},0,0]
[366,2021,"Août","2021-08-31","Réalisé","C2","P1201","PADIAC",null,"INFRASTRUCTURE","Bâtiment","Magasin de stockage","xxxxxx","Construction",{"$nulls":4},"m²",0,0,{"$nulls":6},0,0]
[367,2021,"Août","2021-08-31","Réalisé","C2","P1201","PADIAC",null,"INFRASTRUCTURE","Autres","Aire de séchage","xxxxxx","Construction",{"$nulls":4},"m²",0,0,{"$nulls":6},0,0]
[368,2021,"Août","2021-08-31","Réalisé","C2","P1201","PADIAC",null,"INFRASTRUCTURE","Autres","Aire de séchage","xxxxxx","Construction",{"$nulls":4},"m²",1,100,{"$nulls":6},0]
[369,2021,"Août","2021-08-31","Réalisé","C2","P1201","PADIAC",null,"INFRASTRUCTURE","Autres","Aire de séchage","xxxxxx","Construction",{"$nulls":4},"m²",0,0,{"$nulls":6},0,0]
[370,2021,"Août","2021-08-31","Réalisé","C2","P1201","PADIAC",null,"INFRASTRUCTURE","Autres","Aire de séchage","xxxxxx","Construction",{"$nulls":4},"m²",0,0,{"$nulls":6},0,0]
[371,2021,"Août","2021-08-31","Réalisé","C2","P1201","PADIAC",null,"INFRASTRUCTURE","Autres","Aire de séchage","xxxxxx","Construction",{"$nulls":4},"m²",0,0,{"$nulls":6},0,0]
[372,2021,"Août","2021-08-31","Réalisé","C2","P1201","PADIAC",null,"INFRASTRUCTURE","Autres","Aire de séchage","xxxxxx","Construction",{"$nulls":4},"m²",0,0,{"$nulls":6},0,0]
[373,2021,"Août","2021-08-31","Réalisé","C2","P1201","PADIAC",null,"INFRASTRUCTURE","Autres","Aire de séchage","xxxxxx","Construction",{"$nulls":4},"m²",0,0,{"$nulls":6},0,0]
[374,2021,"Août","2021-08-31","Réalisé","C2","P1201","PADIAC",null,"INFRASTRUCTURE","Autres","Aire de séchage","xxxxxx","Construction",{"$nulls":4},"m²",0,0,{"$nulls":6},0,0]
[375,2021,"Août","2021-08-31","Réalisé","C2","P1201","PADIAC",null,"INFRASTRUCTURE","Autres","Aire de séchage","xxxxxx","Construction",{"$nulls":4},"m²",0,0,{"$nulls":6},0,0]
[376,2021,"Août","2021-08-31","Réalisé","C2","P1201","PADIAC",null,"CONSOMMABLES","Petit matériel","Agricole","xxxxxx",{"$nulls":6},1,0,{"$nulls":6},222]
[377,2021,"Août","2021-08-31","Réalisé","C2","P1201","PADIAC",null,"SERVICE","Etude","Plan Marketing","xxxxxx",{"$nulls":5},"P*J",1,50,{"$nulls":6},4444]
[378,2021,"Août","2021-08-31","Réalisé","C2","P1201","PADIAC",null,"SERVICE","Etude","Diagnostic Inst. & Organisationnel","xxxxxx",{"$nulls":5},"P*J",0,0,{"$nulls":6},0,0]
[379,2021,"Août","2021-08-31","Réalisé","C2","P1201","PADIAC",null,"SERVICE","Etude","Situation de référence","xxxxxx",{"$nulls":5},"P*J",0,0,{"$nulls":6},0,0]
[380,2021,"Août","2021-08-31","Réalisé","C2","P1201","PADIAC",null,"SERVICE","Recherche","Aliment du bétail","xxxxxx",{"$nulls":5},"P*J",0,0,{"$nulls":6},0,0]
[381,2021,"Août","2021-08-31","Réalisé","C2","P1201","PADIAC",null,"SERVICE","Recherche","Aliment du bétail","xxxxxx",{"$nulls":5},"P*J",0,0,{"$nulls":6},0,0]
[382,2021,"Août","2021-08-31","Réalisé","C2","P1201","PADIAC",null,"SERVICE","Recherche","Aliment du bétail","xxxxxx",{"$nulls":5},"P*J",1,120,{"$nulls":6},3333]
[383,2021,"Août","2021-08-31","Réalisé","C2","P1201","PADIAC",null,"SERVICE","Recherche","Aliment du bétail","xxxxxx",{"$nulls":5},"P*J",0,0,{"$nulls":6},0,0]
[384,2021,"Août","2021-08-31","Réalisé","C2","P1201","PADIAC",null,"SERVICE","Conseil","Appui-Conseil","xxxxxx",{"$nulls":5},"P*J",1,12,{"$nulls":6},99991]
[385,2021,"Août","2021-08-31","Réalisé","C2","P1201","PADIAC",null,"SERVICE","Conseil","Négociation","xxxxxx",{"$nulls":5},"P*J",0,0,{"$nulls":6},0,0]
[386,2021,"Août","2021-08-31","Réalisé","C2","P1201","PADIAC",null,"IEC","Information","Radio","xxxxxx",{"$nulls":6},0,0,{"$nulls":6},0,0]
[387,2021,"Août","2021-08-31","Réalisé","C2","P1201","PADIAC",null,"IEC","Information","Radio","xxxxxx",{"$nulls":6},0,0,{"$nulls":6},0,0]
[388,2021,"Août","2021-08-31","Réalisé","C2","P1201","PADIAC",null,"IEC","Information","Radio","xxxxxx",{"$nulls":6},0,0,{"$nulls":6},0,0]
[389,2021,"Août","2021-08-31","Réalisé","C2","P1201","PADIAC",null,"IEC","Information","Radio","xxxxxx",{"$nulls":6},0,0,{"$nulls":6},0,0]
[390,2021,"Août","2021-08-31","Réalisé","C2","P1201","PADIAC",null,"IEC","Information","Atelier","xxxxxx",{"$nulls":6},1,22,{"$nulls":6},3333]
[391,2021,"Août","2021-08-31","Réalisé","C2","P1201","PADIAC",null,"IEC","Information","Voyage d'étude","xxxxxx",{"$nulls":6},0,null,2,null,null,25,25,null,0,0]
[392,2021,"Août","2021-08-31","Réalisé","C2","P1201","PADIAC",null,"IEC","Vulgarisation","Chantier-Ecole","xxxxxx",{"$nulls":6},1,88,{"$nulls":6},0,0]
[393,2021,"Août","2021-08-31","Réalisé","C2","P1201","PADIAC",null,"IEC","Formation","Formateur","xxxxxx",{"$nulls":6},1,{"$nulls":7},444]
[394,2021,"Août","2021-08-31","Réalisé","C2","P1201","PADIAC",null,"IEC","Formation","Producteur","Aliment xxxxxxxxxxxx",{"$nulls":6},0,null,0,null,0,0,0,null,0,0]
[395,2021,"Août","2021-08-31","Réalisé","C2","P1201","PADIAC",null,"IEC","Formation","Producteur","Aliment xxxxxxxxxxxx",{"$nulls":6},0,null,0,null,0,0,0,null,0,0]
[396,2021,"Août","2021-08-31","Réalisé","C2","P1201","PADIAC",null,"IEC","Formation","Producteur","Gestion magasin xxxxx",{"$nulls":6},1,null,10,null,null,4,6,null,88000]
[397,2021,"Août","2021-08-31","Réalisé","C2","P1201","PADIAC",null,"IEC","Formation","Producteur","Gestion magasin xxxxx",{"$nulls":6},0,null,0,null,0,0,0,0,0,0]
[398,2021,"Août","2021-08-31","Réalisé","C2","P1201","PADIAC",null,"IEC","Formation","Producteur","Gestion magasin xxxxx",{"$nulls":6},0,null,0,null,0,0,0,0,0,0]
[399,2021,"Août","2021-08-31","Réalisé","C2","P1201","PADIAC",null,"IEC","Formation","Producteur","Gestion magasin xxxxx",{"$nulls":6},0,null,0,null,0,0,0,0,0,0]
[400,2021,"Août","2021-08-31","Réalisé","C2","P1201","PADIAC",null,"IEC","Formation","Producteur","Gestion magasin xxxxx",{"$nulls":6},0,null,0,null,0,0,0,0,0,0]
[401,2021,"Août","2021-08-31","Réalisé","C2","P1201","PADIAC",null,"IEC","Formation","Producteur","Gestion magasin xxxxx",{"$nulls":6},1,null,3,null,33,4,6,null,28000]
[402,2021,"Août","2021-08-31","Réalisé","C2","P1201","PADIAC",null,"FONDS","Crédit producteur",{"$nulls":8},1,{"$nulls":3},5,{"$nulls":3},444]
[403,2021,"Août","2021-08-31","Réalisé","C2","P1201","PADIAC",null,"FONDS","Crédit producteur",{"$nulls":8},0,{"$nulls":7},0,0]
[404,2021,"Août","2021-08-31","Réalisé","C2","P1201","PADIAC",null,"INFRASTRUCTURE","Bâtiment","Boutique BISMA","xxxxx","Construction","VEND_72","URCEA/BMH",null,null,"m²",999,0,{"$nulls":6},0,0]
[405,2021,"Août","2021-08-31","Réalisé","C2","P1201","PADIAC",null,"INFRASTRUCTURE","Bâtiment","Boutique BISMA","xxxxxx","Construction","VEND_73","U.R.S.COOP-C.P.A./BHM)",null,null,"m²",0,0,{"$nulls":6},0,0]
[406,2021,"Août","2021-08-31","Réalisé","C2","P1201","PADIAC",null,"INFRASTRUCTURE","Bâtiment","Boutique BISMA","xxxxxx","Réhabilitation","VEND_70","Association «Vanoussan » de Sayaro",null,null,"m²",1,100,{"$nulls":6},99959]
[407,2021,"Août","2021-08-31","Réalisé","C2","P1201","PADIAC",null,"INFRASTRUCTURE","Bâtiment","Boutique BISMA","xxxxxx","Réhabilitation","VEND_71","Association Bwawese Centre d’Appui à la Gestion des Exploitations Familiales",null,null,"m²",null,0,{"$nulls":6},0,0]
[408,2021,"Août","2021-08-31","Réalisé","C2","P1201","PADIAC",null,"INFRASTRUCTURE","Bâtiment","Magasin de stockage","xxxxxx","Construction","VEND_72","URCEA/BMH",null,null,"m²",null,0,{"$nulls":6},0,0]
[409,2021,"Août","2021-08-31","Réalisé","C2","P1201","PADIAC",null,"INFRASTRUCTURE","Bâtiment","Magasin de stockage","xxxxxx","Construction","VEND_73","U.R.S.COOP-C.P.A./BHM)",null,null,"m²",null,0,{"$nulls":6},0,0]
[410,2021,"Août","2021-08-31","Réalisé","C2","P1201","PADIAC",null,"INFRASTRUCTURE","Bâtiment","Magasin de stockage","xxxxxx","Construction",{"$nulls":4},"m²",null,100,{"$nulls":6},0]
[411,2021,"Août","2021-08-31","Réalisé","C2","P1201","PADIAC",null,"INFRASTRUCTURE","Bâtiment","Magasin de stockage","xxxxxx","Construction",{"$nulls":4},"m²",null,0,{"$nulls":6},0,0]
[412,2021,"Août","2021-08-31","Réalisé","C2","P1201","PADIAC",null,"INFRASTRUCTURE","Bâtiment","Magasin de stockage","xxxxxx","Construction",{"$nulls":4},"m²",null,0,{"$nulls":6},0,0]
[413,2021,"Août","2021-08-31","Réalisé","C2","P1201","PADIAC",null,"INFRASTRUCTURE","Bâtiment","Magasin de stockage","xxxxxx","Construction",{"$nulls":4},"m²",null,0,{"$nulls":6},0,0]
[414,2021,"Août","2021-08-31","Réalisé","C2","P1201","PADIAC",null,"INFRASTRUCTURE","Bâtiment","Magasin de stockage","xxxxxx","Construction",{"$nulls":4},"m²",null,0,{"$nulls":6},0,0]
[415,2021,"Août","2021-08-31","Réalisé","C2","P1201","PADIAC",null,"INFRASTRUCTURE","Bâtiment","Magasin de stockage","xxxxxx","Construction",{"$nulls":4},"m²",null,0,{"$nulls":6},0,0]
[416,2021,"Août","2021-08-31","Réalisé","C2","P1201","PADIAC",null,"INFRASTRUCTURE","Bâtiment","Magasin de stockage","xxxxxx","Construction",{"$nulls":4},"m²",0,0,{"$nulls":6},0,0]
[417,2021,"Août","2021-08-31","Réalisé","C2","P1201","PADIAC",null,"INFRASTRUCTURE","Bâtiment","Magasin de stockage","xxxxxx","Construction",{"$nulls":4},"m²",0,0,{"$nulls":6},0,0]
[418,2021,"Août","2021-08-31","Réalisé","C2","P1201","PADIAC",null,"INFRASTRUCTURE","Bâtiment","Magasin de stockage","xxxxxx","Construction",{"$nulls":4},"m²",0,0,{"$nulls":6},0,0]
[419,2021,"Août","2021-08-31","Réalisé","C2","P1201","PADIAC",null,"INFRASTRUCTURE","Bâtiment","Magasin de stockage","xxxxxx","Construction",{"$nulls":4},"m²",1,100,{"$nulls":6},0]
[420,2021,"Août","2021-08-31","Réalisé","C2","P1201","PADIAC",null,"INFRASTRUCTURE","Bâtiment","Magasin de stockage","xxxxxx","Construction",{"$nulls":4},"m²",0,0,{"$nulls":6},0,0]
[421,2021,"Août","2021-08-31","Réalisé","C2","P1201","PADIAC",null,"INFRASTRUCTURE","Bâtiment","Magasin de stockage","xxxxxx","Construction",{"$nulls":4},"m²",0,0,{"$nulls":6},0,0]
[422,2021,"Août","2021-08-31","Réalisé","C2","P1201","PADIAC",null,"INFRASTRUCTURE","Autres","Aire de séchage","xxxxxx","Construction",{"$nulls":4},"m²",0,0,{"$nulls":6},0,0]
[423,2021,"Août","2021-08-31","Réalisé","C2","P1201","PADIAC",null,"INFRASTRUCTURE","Autres","Aire de séchage","xxxxxx","Construction",{"$nulls":4},"m²",1,100,{"$nulls":6},0]
[424,2021,"Août","2021-08-31","Réalisé","C2","P1201","PADIAC",null,"INFRASTRUCTURE","Autres","Aire de séchage","xxxxxx","Construction",{"$nulls":4},"m²",0,0,{"$nulls":6},0,0]
[425,2021,"Août","2021-08-31","Réalisé","C2","P1201","PADIAC",null,"INFRASTRUCTURE","Autres","Aire de séchage","xxxxxx","Construction",{"$nulls":4},"m²",0,0,{"$nulls":6},0,0]
[426,2021,"Août","2021-08-31","Réalisé","C2","P1201","PADIAC",null,"INFRASTRUCTURE","Autres","Aire de séchage","xxxxxx","Construction",{"$nulls":4},"m²",0,0,{"$nulls":6},0,0]
[427,2021,"Août","2021-08-31","Réalisé","C2","P1201","PADIAC",null,"INFRASTRUCTURE","Autres","Aire de séchage","xxxxxx","Construction",{"$nulls":4},"m²",0,0,{"$nulls":6},0,0]
[428,2021,"Août","2021-08-31","Réalisé","C2","P1201","PADIAC",null,"INFRASTRUCTURE","Autres","Aire de séchage","xxxxxx","Construction",{"$nulls":4},"m²",0,0,{"$nulls":6},0,0]
[429,2021,"Août","2021-08-31","Réalisé","C2","P1201","PADIAC",null,"INFRASTRUCTURE","Autres","Aire de séchage","xxxxxx","Construction",{"$nulls":4},"m²",0,0,{"$nulls":6},0,0]
[430,2021,"Août","2021-08-31","Réalisé","C2","P1201","PADIAC",null,"INFRASTRUCTURE","Autres","Aire de séchage","xxxxxx","Construction",{"$nulls":4},"m²",0,0,{"$nulls":6},0,0]
[431,2021,"Août","2021-08-31","Réalisé","C2","P1201","PADIAC",null,"CONSOMMABLES","Petit matériel","Agricole","xxxxxx",{"$nulls":6},1,0,{"$nulls":6},222]
[432,2021,"Août","2021-08-31","Réalisé","C2","P1201","PADIAC",null,"SERVICE","Etude","Plan Marketing","xxxxxx",{"$nulls":5},"P*J",1,50,{"$nulls":6},4444]
[433,2021,"Août","2021-08-31","Réalisé","C2","P1201","PADIAC",null,"SERVICE","Etude","Diagnostic Inst. & Organisationnel","xxxxxx",{"$nulls":5},"P*J",0,0,{"$nulls":6},0,0]
[434,2021,"Août","2021-08-31","Réalisé","C2","P1201","PADIAC",null,"SERVICE","Etude","Situation de référence","xxxxxx",{"$nulls":5},"P*J",0,0,{"$nulls":6},0,0]
[435,2021,"Août","2021-08-31","Réalisé","C2","P1201","PADIAC",null,"SERVICE","Recherche","Aliment du bétail","xxxxxx",{"$nulls":5},"P*J",0,0,{"$nulls":6},0,0]
[436,2021,"Août","2021-08-31","Réalisé","C2","P1201","PADIAC",null,"SERVICE","Recherche","Aliment du bétail","xxxxxx",{"$nulls":5},"P*J",0,0,{"$nulls":6},0,0]
[437,2021,"Août","2021-08-31","Réalisé","C2","P1201","PADIAC",null,"SERVICE","Recherche","Aliment du bétail","xxxxxx",{"$nulls":5},"P*J",1,120,{"$nulls":6},3333]
[438,2021,"Août","2021-08-31","Réalisé","C2","P1201","PADIAC",null,"SERVICE","Recherche","Aliment du bétail","xxxxxx",{"$nulls":5},"P*J",0,0,{"$nulls":6},0,0]
[439,2021,"Août","2021-08-31","Réalisé","C2","P1201","PADIAC",null,"SERVICE","Conseil","Appui-Conseil","xxxxxx",{"$nulls":5},"P*J",1,12,{"$nulls":6},99991]
[440,2021,"Août","2021-08-31","Réalisé","C2","P1201","PADIAC",null,"SERVICE","Conseil","Négociation","xxxxxx",{"$nulls":5},"P*J",0,0,{"$nulls":6},0,0]
[441,2021,"Août","2021-08-31","Réalisé","C2","P1201","PADIAC",null,"IEC","Information","Radio","xxxxxx",{"$nulls":6},0,0,{"$nulls":6},0,0]
[442,2021,"Août","2021-08-31","Réalisé","C2","P1201","PADIAC",null,"IEC","Information","Radio","xxxxxx",{"$nulls":6},0,0,{"$nulls":6},0,0]
[443,2021,"Août","2021-08-31","Réalisé","C2","P1201","PADIAC",null,"IEC","Information","Radio","xxxxxx",{"$nulls":6},0,0,{"$nulls":6},0,0]
[444,2021,"Août","2021-08-31","Réalisé","C2","P1201","PADIAC",null,"IEC","Information","Radio","xxxxxx",{"$nulls":6},0,0,{"$nulls":6},0,0]
[445,2021,"Août","2021-08-31","Réalisé","C2","P1201","PADIAC",null,"IEC","Information","Atelier","xxxxxx",{"$nulls":6},1,22,{"$nulls":6},3333]
[446,2021,"Août","2021-08-31","Réalisé","C2","P1201","PADIAC",null,"IEC","Information","Voyage d'étude","xxxxxx",{"$nulls":6},0,null,2,null,null,25,25,null,0,0]
[447,2021,"Août","2021-08-31","Réalisé","C2","P1201","PADIAC",null,"IEC","Vulgarisation","Chantier-Ecole","xxxxxx",{"$nulls":6},1,88,{"$nulls":6},0,0]
[448,2021,"Août","2021-08-31","Réalisé","C2","P1201","PADIAC",null,"IEC","Formation","Formateur","xxxxxx",{"$nulls":6},1,{"$nulls":7},444]
[449,2021,"Août","2021-08-31","Réalisé","C2","P1201","PADIAC",null,"IEC","Formation","Producteur","Aliment xxxxxxxxxxxx",{"$nulls":6},0,null,0,null,0,0,0,null,0,0]
[450,2021,"Août","2021-08-31","Réalisé","C2","P1201","PADIAC",null,"IEC","Formation","Producteur","Aliment xxxxxxxxxxxx",{"$nulls":6},0,null,0,null,0,0,0,null,0,0]
[451,2021,"Août","2021-08-31","Réalisé","C2","P1201","PADIAC",null,"IEC","Formation","Producteur","Gestion magasin xxxxx",{"$nulls":6},1,null,10,null,null,4,6,null,88000]
[452,2021,"Août","2021-08-31","Réalisé","C2","P1201","PADIAC",null,"IEC","Formation","Producteur","Gestion magasin xxxxx",{"$nulls":6},0,null,0,null,0,0,0,0,0,0]
[453,2021,"Août","2021-08-31","Réalisé","C2","P1201","PADIAC",null,"IEC","Formation","Producteur","Gestion magasin xxxxx",{"$nulls":6},0,null,0,null,0,0,0,0,0,0]
[454,2021,"Août","2021-08-31","Réalisé","C2","P1201","PADIAC",null,"IEC","Formation","Producteur","Gestion magasin xxxxx",{"$nulls":6},0,null,0,null,0,0,0,0,0,0]
[455,2021,"Août","2021-08-31","Réalisé","C2","P1201","PADIAC",null,"IEC","Formation","Producteur","Gestion magasin xxxxx",{"$nulls":6},0,null,0,null,0,0,0,0,0,0]
[456,2021,"Août","2021-08-31","Réalisé","C2","P1201","PADIAC",null,"IEC","Formation","Producteur","Gestion magasin xxxxx",{"$nulls":6},1,null,3,null,33,4,6,null,28000]
[457,2021,"Août","2021-08-31","Réalisé","C2","P1201","PADIAC",null,"FONDS","Crédit producteur",{"$nulls":8},1,{"$nulls":3},5,{"$nulls":3},444]
[458,2021,"Août","2021-08-31","Réalisé","C2","P1201","PADIAC",null,"FONDS","Crédit producteur",{"$nulls":8},0,{"$nulls":7},0,0]